Workbook

Sheet 資料勿動 (hidden)
A1: Bill To Code | B1: Bill To Short Name | C1: 第一組 | D1: 第二組 | E1: 部門名稱 | F1: 區 | G1: 區1 | H1: BUYING_GROUP | I1: BUYING_GROUP-1 | J1: Sales Channel Name | K1: Sales AR | L1: AR Sales Channel | M1: =SUM(K:K) -> 1099030397
A2: TW002512001B | B2: ONE TIME CUSTOMER | E2: ETC | F2: ETC | G2: ETC | H2: ETC | I2: ETC_TT | J2: TW002512001B | K2: =VLOOKUP(A2,[2]總表!$A$1:$I$491,9,0) -> 104735 | L2: ETC | M2: 1099030389 | O2: Manual
A3: TW006291001B | B3: ONE TIME CUSTOMER | E3: ETC | F3: ETC | G3: ETC | H3: ETC | I3: ETC_TT | J3: TW006291001B | L3: ETC | M3: =M1-M2 -> 8 | O3: Bill To Code | P3: Bill To Short Name | Q3: 區
A4: PH000001009B | B4: LGEPH | E4: ETC | F4: ETC | G4: ETC | H4: ETC | I4: ETC_TT | J4: PH000001009B | L4: ETC | O4: TW003182001B | P4: 聯強國際股份有限公司 | Q4: 行動電話
A5: VN007883040B | B5: LGEVH | E5: ETC | F5: ETC | G5: ETC | H5: ETC | I5: ETC_TT | J5: VN007883040B | K5: =VLOOKUP(A5,[2]總表!$A$1:$I$491,9,0) -> 76657 | L5: ETC | O5: TW004610001B | P5: 神坊資訊股份有限公司 | Q5: ONLINE
A6: SG001062061B | B6: LGESL | E6: ETC | F6: ETC | G6: ETC | H6: ETC | I6: ETC_TT | J6: SG001062061B | K6: =VLOOKUP(A6,[2]總表!$A$1:$I$491,9,0) -> 121231 | L6: ETC | O6: TW005578001B | P6: 大同綜合訊電股份有限公司 | Q6: 大同
A7: TW002070001B | B7: 來福電器商行 | C7: 19600401 | D7: 08026783 | E7: 高屏營銷處 | F7: 高屏營銷處 | G7: 高屏 | H7: DEALER_TT | I7: DCS_TT | J7: TW002070001B | K7: =VLOOKUP(A7,[2]總表!$A$1:$I$491,9,0) -> 68591 | L7: 高屏營銷處 | O7: TW006171001B | P7: 葳訊企業股份有限公司 | Q7: 行動電話
A8: TW002073001B | B8: 貴櫻音響 | C8: 19660906 | D8: 95987415 | E8: 高屏營銷處 | F8: 高屏營銷處 | G8: 高屏 | H8: DEALER_TT | I8: DLC_TT | O8: TW006207001B | P8: 包昇數位文化有限公司 | Q8: ONLINE
A9: TW002076001B | B9: 億興電業行 | C9: 19640715 | D9: 70940630 | E9: 高屏營銷處 | F9: 高屏營銷處 | G9: 高屏 | H9: DEALER_TT | I9: DCS_TT | J9: TW002076001B | K9: =VLOOKUP(A9,[2]總表!$A$1:$I$491,9,0) -> 0 | L9: 高屏營銷處 | O9: TW006404001B | P9: 精傑 | Q9: 行動電話
A10: TW002077001B | B10: 信一電器行 | C10: 19520302 | D10: 91730759 | E10: 高屏營銷處 | F10: 高屏營銷處 | G10: 高屏 | H10: DEALER_TT | I10: DLC_TT | J10: TW002077001B | K10: =VLOOKUP(A10,[2]總表!$A$1:$I$491,9,0) -> 65419 | L10: 高屏營銷處 | O10: TW006531001B | P10: 地標電通有限公司 | Q10: 行動電話
A11: TW002079001B | B11: 立陞電器 | C11: 19600710 | D11: 23956174 | E11: 高屏營銷處 | F11: 高屏營銷處 | G11: 高屏 | H11: DEALER_TT | I11: DLC_TT | J11: TW002079001B | K11: =VLOOKUP(A11,[2]總表!$A$1:$I$491,9,0) -> 99094 | L11: 高屏營銷處 | O11: TW006869001B | P11: 雅光有限公司 | Q11: ETC
A12: TW002083001B | B12: 路得企業有限公司 | C12: 19600503 | D12: 84672419 | E12: 高屏營銷處 | F12: 高屏營銷處 | G12: 高屏 | H12: DEALER_TT | I12: SPD_TT | J12: TW002083001B | K12: =VLOOKUP(A12,[2]總表!$A$1:$I$491,9,0) -> 76922 | L12: 高屏營銷處 | O12: TW006533001B | P12: 傑升通信股份有限公司 | Q12: 行動電話
A13: TW002084001B | B13: 新進發企業行 | C13: 19520414 | D13: 90802950 | E13: 高屏營銷處 | F13: 高屏營銷處 | G13: 高屏 | H13: DEALER_TT | I13: DLC_TT
A14: TW002085001B | B14: 皇昇電器行 | C14: 19600320 | D14: 08069071 | E14: 高屏營銷處 | F14: 高屏營銷處 | G14: 高屏 | H14: DEALER_TT | I14: DLC_TT
A15: TW002090001B | B15: 慶旺電器有限公司 | C15: hw7498625 | D15: hw16826605 | E15: 高屏營銷處 | F15: 高屏營銷處 | G15: 高屏 | H15: DEALER_TT | I15: DLC_TT | J15: TW002090001B | K15: =VLOOKUP(A15,[2]總表!$A$1:$I$491,9,0) -> 48369 | L15: 高屏營銷處
A16: TW002091001B | B16: 人友電器行 | C16: 19601028 | D16: 77003547 | E16: 高屏營銷處 | F16: 高屏營銷處 | G16: 高屏 | H16: DEALER_TT | I16: DLC_TT | J16: TW002091001B | K16: =VLOOKUP(A16,[2]總表!$A$1:$I$491,9,0) -> 0 | L16: 高屏營銷處
A17: TW002093001B | B17: 鴻嘉電化商行 | C17: 19480106 | D17: 06696505 | E17: 高屏營銷處 | F17: 高屏營銷處 | G17: 高屏 | H17: DEALER_TT | I17: DCS_TT | J17: TW002093001B | K17: =VLOOKUP(A17,[2]總表!$A$1:$I$491,9,0) -> 53398 | L17: 高屏營銷處
A18: TW002094001B | B18: 力利企業有限公司 | C18: 19660912 | D18: 16683445 | E18: 高屏營銷處 | F18: 高屏營銷處 | G18: 高屏 | H18: DEALER_TT | I18: DCS_TT | J18: TW002094001B | K18: =VLOOKUP(A18,[2]總表!$A$1:$I$491,9,0) -> 0 | L18: 高屏營銷處
A19: TW002099001B | B19: 淙勝電器有限公司 | C19: 19580807 | D19: 16476213 | E19: 高屏營銷處 | F19: 高屏營銷處 | G19: 高屏 | H19: DEALER_TT | I19: DCS_TT | J19: TW002099001B | K19: =VLOOKUP(A19,[2]總表!$A$1:$I$491,9,0) -> 61858 | L19: 高屏營銷處
A20: TW002104001B | B20: 三豐電器行 | C20: 19681110 | D20: 19661607 | E20: 高屏營銷處 | F20: 高屏營銷處 | G20: 高屏 | H20: DEALER_TT | I20: DLC_TT | J20: TW002104001B | K20: =VLOOKUP(A20,[2]總表!$A$1:$I$491,9,0) -> 0 | L20: 高屏營銷處
A21: TW002105001B | B21: 上眾電器有限公司 | C21: 19600908 | D21: 97408406 | E21: 高屏營銷處 | F21: 高屏營銷處 | G21: 高屏 | H21: DEALER_TT | I21: DCS_TT | J21: TW002105001B | K21: =VLOOKUP(A21,[2]總表!$A$1:$I$491,9,0) -> 32180 | L21: 高屏營銷處
A22: TW002106001B | B22: 大時代量販家電 | C22: 19670921 | D22: 07910980 | E22: 高屏營銷處 | F22: 高屏營銷處 | G22: 高屏 | H22: DEALER_TT | I22: SPD_TT | J22: TW002106001B | K22: =VLOOKUP(A22,[2]總表!$A$1:$I$491,9,0) -> 948855 | L22: 高屏營銷處
A23: TW002108001B | B23: 春聲電器有限公司 | C23: 19590922 | D23: 86633356 | E23: 高屏營銷處 | F23: 高屏營銷處 | G23: 高屏 | H23: DEALER_TT | I23: DCS_TT | J23: TW002108001B | K23: =VLOOKUP(A23,[2]總表!$A$1:$I$491,9,0) -> 344349 | L23: 高屏營銷處
A24: TW002118001B | B24: 福總電業社 | C24: 19551001 | D24: 08519549 | E24: 高屏營銷處 | F24: 高屏營銷處 | G24: 高屏 | H24: DEALER_TT | I24: DCS_TT | J24: TW002118001B | K24: =VLOOKUP(A24,[2]總表!$A$1:$I$491,9,0) -> 78269 | L24: 高屏營銷處
A25: TW002119001B | B25: 聯立貿易有限公司 | C25: 19520813 | D25: 70405187 | E25: 高屏營銷處 | F25: 高屏營銷處 | G25: 高屏 | H25: DEALER_TT | I25: DCS_TT | J25: TW002119001B | K25: =VLOOKUP(A25,[2]總表!$A$1:$I$491,9,0) -> 244857 | L25: 高屏營銷處
A26: TW002130001B | B26: 百鈴電器影視有限公司 | C26: 19530824 | D26: 72192956 | E26: 嘉南營銷處 | F26: 嘉南營銷處 | G26: 嘉南 | H26: DEALER_TT | I26: DCS_TT | J26: TW002130001B | K26: =VLOOKUP(A26,[2]總表!$A$1:$I$491,9,0) -> 228393 | L26: 嘉南營銷處
A27: TW002140001B | B27: 大時代量販家電 | C27: 19681011 | D27: 87692727 | E27: 嘉南營銷處 | F27: 嘉南營銷處 | G27: 嘉南 | H27: DEALER_TT | I27: DCS_TT | J27: TW002140001B | K27: =VLOOKUP(A27,[2]總表!$A$1:$I$491,9,0) -> 284604 | L27: 嘉南營銷處
A28: TW002141001B | B28: 冠銓電器有限公司 | C28: 19630606 | D28: 16860835 | E28: 嘉南營銷處 | F28: 嘉南營銷處 | G28: 嘉南 | H28: DEALER_TT | I28: SPD_TT | J28: TW002141001B | K28: =VLOOKUP(A28,[2]總表!$A$1:$I$491,9,0) -> 894459 | L28: 嘉南營銷處
A29: TW002143001B | B29: 全省電器有限公司 | C29: 19701230 | D29: 69689334 | E29: 嘉南營銷處 | F29: 嘉南營銷處 | G29: 嘉南 | H29: DEALER_TT | I29: SPD_TT | J29: TW002143001B | K29: =VLOOKUP(A29,[2]總表!$A$1:$I$491,9,0) -> 695475 | L29: 嘉南營銷處
A30: TW002144001B | B30: 歐鋒電器行 | C30: 19630108 | D30: 78995756 | E30: 嘉南營銷處 | F30: 嘉南營銷處 | G30: 嘉南 | H30: DEALER_TT | I30: DCS_TT | J30: TW002144001B | K30: =VLOOKUP(A30,[2]總表!$A$1:$I$491,9,0) -> 234595 | L30: 嘉南營銷處
A31: TW002146001B | B31: 宇騰電器行 | C31: 19630910 | D31: 78630074 | E31: 嘉南營銷處 | F31: 嘉南營銷處 | G31: 嘉南 | H31: DEALER_TT | I31: DCS_TT
A32: TW002150001B | B32: 宏偉電器行 | C32: 19610121 | D32: 06504730 | E32: 嘉南營銷處 | F32: 嘉南營銷處 | G32: 嘉南 | H32: DEALER_TT | I32: DCS_TT | J32: TW002150001B | K32: =VLOOKUP(A32,[2]總表!$A$1:$I$491,9,0) -> 158483 | L32: 嘉南營銷處
A33: TW002151001B | B33: 松寶電器行 | C33: 19530411 | D33: 85741379 | E33: 嘉南營銷處 | F33: 嘉南營銷處 | G33: 嘉南 | H33: DEALER_TT | I33: DLC_TT | J33: TW002151001B | K33: =VLOOKUP(A33,[2]總表!$A$1:$I$491,9,0) -> 0 | L33: 嘉南營銷處
A34: TW002152001B | B34: 世英電業行 | C34: 19510120 | D34: 69310389 | E34: 嘉南營銷處 | F34: 嘉南營銷處 | G34: 嘉南 | H34: DEALER_TT | I34: DCS_TT
A35: TW002154001B | B35: 信福電器有限公司 | C35: 19710107 | D35: 69279211 | E35: 嘉南營銷處 | F35: 嘉南營銷處 | G35: 嘉南 | H35: DEALER_TT | I35: DCS_TT | J35: TW002154001B | K35: =VLOOKUP(A35,[2]總表!$A$1:$I$491,9,0) -> 1916708 | L35: 嘉南營銷處
A36: TW002155001B | B36: 老李電器企業有限公司 | C36: 19541025 | D36: 06375829 | E36: 嘉南營銷處 | F36: 嘉南營銷處 | G36: 嘉南 | H36: DEALER_TT | I36: DCS_TT | J36: TW002155001B | K36: =VLOOKUP(A36,[2]總表!$A$1:$I$491,9,0) -> 0 | L36: 嘉南營銷處
A37: TW002158001B | B37: 中美電器行 | C37: 19640417 | D37: 20198584 | E37: 嘉南營銷處 | F37: 嘉南營銷處 | G37: 嘉南 | H37: DEALER_TT | I37: DLC_TT | J37: TW002158001B | K37: =VLOOKUP(A37,[2]總表!$A$1:$I$491,9,0) -> 18619 | L37: 嘉南營銷處
A38: TW002173001B | B38: 泰欣電器行 | C38: 19601208 | D38: 06556096 | E38: 嘉南營銷處 | F38: 嘉南營銷處 | G38: 嘉南 | H38: DEALER_TT | I38: SPD_TT | J38: TW002173001B | K38: =VLOOKUP(A38,[2]總表!$A$1:$I$491,9,0) -> 470808 | L38: 嘉南營銷處
A39: TW002174001B | B39: 強尼電器百貨大批發 | C39: 19651231 | D39: 06583544 | E39: 嘉南營銷處 | F39: 嘉南營銷處 | G39: 嘉南 | H39: DEALER_TT | I39: DLC_TT
A40: TW002176001B | B40: 益昌電氣行 | C40: 19720603 | D40: 72166747 | E40: 嘉南營銷處 | F40: 嘉南營銷處 | G40: 嘉南 | H40: DEALER_TT | I40: SPD_TT | J40: TW002176001B | K40: =VLOOKUP(A40,[2]總表!$A$1:$I$491,9,0) -> 0 | L40: 嘉南營銷處
A41: TW002192001B | B41: 和春電器行 | C41: 19681015 | D41: 64910498 | E41: 嘉南營銷處 | F41: 嘉南營銷處 | G41: 嘉南 | H41: DEALER_TT | I41: DLC_TT | J41: TW002192001B | K41: =VLOOKUP(A41,[2]總表!$A$1:$I$491,9,0) -> 75331 | L41: 嘉南營銷處
A42: TW002194001B | B42: 宏達電氣行 | C42: 19780611 | D42: 64862377 | E42: 台中營銷處 | F42: 台中營銷處 | G42: 台中 | H42: DEALER_TT | I42: DCS_TT | J42: TW002194001B | K42: =VLOOKUP(A42,[2]總表!$A$1:$I$491,9,0) -> 401072 | L42: 台中營銷處
A43: TW002201001B | B43: 中聯發國際企業有限公司 | C43: TW002201 | D43: 16402395 | E43: 台中營銷處 | F43: 台中營銷處 | G43: 台中 | H43: DEALER_TT | I43: DLC_TT | J43: TW002201001B | K43: =VLOOKUP(A43,[2]總表!$A$1:$I$491,9,0) -> 177310 | L43: 台中營銷處
A44: TW002204001B | B44: 鑫昌電器有限公司 | C44: 22789515 | D44: 22791019 | E44: 台中營銷處 | F44: 台中營銷處 | G44: 台中 | H44: DEALER_TT | I44: SPD_TT | J44: TW002204001B | K44: =VLOOKUP(A44,[2]總表!$A$1:$I$491,9,0) -> 0 | L44: 台中營銷處
A45: TW002206001B | B45: 祥峰電器行 | C45: TW002206 | D45: 61841075 | E45: 台中營銷處 | F45: 台中營銷處 | G45: 台中 | H45: DEALER_TT | I45: DLC_TT | J45: TW002206001B | K45: =VLOOKUP(A45,[2]總表!$A$1:$I$491,9,0) -> 23292 | L45: 台中營銷處
A46: TW002214001B | B46: 欣益電器行 | C46: TW002214 | D46: 12043905 | E46: 台中營銷處 | F46: 台中營銷處 | G46: 台中 | H46: DEALER_TT | I46: SPD_TT | J46: TW002214001B | K46: =VLOOKUP(A46,[2]總表!$A$1:$I$491,9,0) -> 166216 | L46: 台中營銷處
A47: TW002223001B | B47: 長紅電子專賣店 | C47: 19680422 | D47: 92812618 | E47: 台中營銷處 | F47: 台中營銷處 | G47: 台中 | H47: DEALER_TT | I47: DLC_TT | J47: TW002223001B | L47: 台中營銷處
A48: TW002228001B | B48: 嘉聲電器有限公司 | C48: TW002228 | D48: 22960798 | E48: 台中營銷處 | F48: 台中營銷處 | G48: 台中 | H48: DEALER_TT | I48: DLC_TT
A49: TW002229001B | B49: 宏昌電器行 | C49: 19590618 | D49: 24151920 | E49: 台中營銷處 | F49: 台中營銷處 | G49: 台中 | H49: DEALER_TT | I49: DLC_TT | J49: TW002229001B | K49: =VLOOKUP(A49,[2]總表!$A$1:$I$491,9,0) -> 22529 | L49: 台中營銷處
A50: TW002239001B | B50: 明信電子專賣店 | C50: 19641206 | D50: 77109680 | E50: 台中營銷處 | F50: 台中營銷處 | G50: 台中 | H50: DEALER_TT | I50: DLC_TT | J50: TW002239001B | K50: =VLOOKUP(A50,[2]總表!$A$1:$I$491,9,0) -> 19397 | L50: 台中營銷處
A51: TW002245001B | B51: 明嘉電器 | C51: TW002245 | D51: 23077347 | E51: 台中營銷處 | F51: 台中營銷處 | G51: 台中 | H51: DEALER_TT | I51: DLC_TT
A52: TW002248001B | B52: 盟音電器 | C52: TW002248 | D52: 84181461 | E52: 台中營銷處 | F52: 台中營銷處 | G52: 台中 | H52: DEALER_TT | I52: DLC_TT
A53: TW002250001B | B53: 格愛陞有限公司 | C53: TW002250 | D53: 84694814 | E53: 台中營銷處 | F53: 台中營銷處 | G53: 台中 | H53: DEALER_TT | I53: DCS_TT
A54: TW002252001B | B54: 沅富電器行 | C54: 19611227 | D54: 18334578 | E54: 台中營銷處 | F54: 台中營銷處 | G54: 台中 | H54: DEALER_TT | I54: SPD_TT | J54: TW002252001B | K54: =VLOOKUP(A54,[2]總表!$A$1:$I$491,9,0) -> 131318 | L54: 台中營銷處
A55: TW002257001B | B55: 恆信電器有限公司 | C55: TW002257 | D55: 89817694 | E55: 台中營銷處 | F55: 台中營銷處 | G55: 台中 | H55: DEALER_TT | I55: DCS_TT | J55: TW002257001B | K55: =VLOOKUP(A55,[2]總表!$A$1:$I$491,9,0) -> 90254 | L55: 台中營銷處
A56: TW002261001B | B56: 美齊富有限公司 | C56: 23893338 | D56: 23811788 | E56: 台中營銷處 | F56: 台中營銷處 | G56: 台中 | H56: DEALER_TT | I56: DLC_TT | J56: TW002261001B | K56: =VLOOKUP(A56,[2]總表!$A$1:$I$491,9,0) -> 86145 | L56: 台中營銷處
A57: TW002261002B | B57: 美齊富有限公司 | C57: XXXXXXXX | D57: XXXXXXXX | E57: ID/SAC Sales | F57: ID/SAC Sales | G57: ID & SAC | H57: B2B_TT | I57: CAC_TT
A58: TW002262001B | B58: 太子電業行 | C58: TW002262 | D58: 77685331 | E58: 台中營銷處 | F58: 台中營銷處 | G58: 台中 | H58: DEALER_TT | I58: DCS_TT | J58: TW002262001B | K58: =VLOOKUP(A58,[2]總表!$A$1:$I$491,9,0) -> 311934 | L58: 台中營銷處
A59: TW002265001B | B59: 大謄電器有限公司 | C59: TW002265 | D59: 22915458 | E59: 台中營銷處 | F59: 台中營銷處 | G59: 台中 | H59: DEALER_TT | I59: DCS_TT | J59: TW002265001B | K59: =VLOOKUP(A59,[2]總表!$A$1:$I$491,9,0) -> 127804 | L59: 台中營銷處
A60: TW002267001B | B60: 東林電器有限公司 | C60: 19531101 | D60: 97482257 | E60: 台中營銷處 | F60: 台中營銷處 | G60: 台中 | H60: DEALER_TT | I60: DLC_TT | J60: TW002267001B | K60: =VLOOKUP(A60,[2]總表!$A$1:$I$491,9,0) -> 46712 | L60: 台中營銷處
A61: TW002268001B | B61: 佳億電器量販 | C61: TW002268 | D61: 77249459 | E61: 台中營銷處 | F61: 台中營銷處 | G61: 台中 | H61: DEALER_TT | I61: DLC_TT
A62: TW002277001B | B62: 家晟電器 | C62: TW002277 | D62: 22401937 | E62: 台中營銷處 | F62: 台中營銷處 | G62: 台中 | H62: DEALER_TT | I62: DLC_TT
A63: TW002288001B | B63: 幸韻電器有限公司 | C63: 19661201 | D63: 89328106 | E63: 桃竹營銷處 | F63: 桃竹營銷處 | G63: 桃竹 | H63: DEALER_TT | I63: SPD_TT | J63: TW002288001B | K63: =VLOOKUP(A63,[2]總表!$A$1:$I$491,9,0) -> 876611 | L63: 桃竹營銷處
A64: TW002291001B | B64: 金一電器有限公司 | C64: 19570623 | D64: 22137992 | E64: 桃竹營銷處 | F64: 桃竹營銷處 | G64: 桃竹 | H64: DEALER_TT | I64: SPD_TT | J64: TW002291001B | K64: =VLOOKUP(A64,[2]總表!$A$1:$I$491,9,0) -> 975876 | L64: 桃竹營銷處
A65: TW002295001B | B65: 金昇電器有限公司 | C65: 19691111 | D65: 49651654 | E65: 桃竹營銷處 | F65: 桃竹營銷處 | G65: 桃竹 | H65: DEALER_TT | I65: DLC_TT
A66: TW002305001B | B66: 皇典電器行 | C66: 19680201 | D66: 78544155 | E66: 桃竹營銷處 | F66: 桃竹營銷處 | G66: 桃竹 | H66: DEALER_TT | I66: DCS_TT | J66: TW002305001B | K66: =VLOOKUP(A66,[2]總表!$A$1:$I$491,9,0) -> 67027 | L66: 桃竹營銷處
A67: TW002315001B | B67: 銓日電器行 | C67: 19670416 | D67: 73800090 | E67: 桃竹營銷處 | F67: 桃竹營銷處 | G67: 桃竹 | H67: DEALER_TT | I67: DLC_TT | K67: =VLOOKUP(A67,[2]總表!$A$1:$I$491,9,0) -> 16069
A68: TW002324001B | B68: 兆宏電業行 | C68: 19640130 | D68: 47039765 | E68: 桃竹營銷處 | F68: 桃竹營銷處 | G68: 桃竹 | H68: DEALER_TT | I68: DCS_TT | J68: TW002324001B | K68: =VLOOKUP(A68,[2]總表!$A$1:$I$491,9,0) -> 119544 | L68: 桃竹營銷處
A69: TW002331001B | B69: 同慶電氣行 | C69: 19530412 | D69: 43779752 | E69: 桃竹營銷處 | F69: 桃竹營銷處 | G69: 桃竹 | H69: DEALER_TT | I69: DCS_TT | J69: TW002331001B | K69: =VLOOKUP(A69,[2]總表!$A$1:$I$491,9,0) -> 19397 | L69: 桃竹營銷處
A70: TW002338001B | B70: 福娥電業行 | C70: 19580811 | D70: 13513828 | E70: 桃竹營銷處 | F70: 桃竹營銷處 | G70: 桃竹 | H70: DEALER_TT | I70: DCS_TT | J70: TW002338001B | K70: =VLOOKUP(A70,[2]總表!$A$1:$I$491,9,0) -> 59512 | L70: 桃竹營銷處
A71: TW002343001B | B71: 名富電器行 | C71: 19500615 | D71: 45162367 | E71: 桃竹營銷處 | F71: 桃竹營銷處 | G71: 桃竹 | H71: DEALER_TT | I71: DLC_TT | J71: TW002343001B | K71: =VLOOKUP(A71,[2]總表!$A$1:$I$491,9,0) -> 32361 | L71: 桃竹營銷處
A72: TW002347001B | B72: 得興電器有限公司 | C72: 19690802 | D72: 89730711 | E72: 桃竹營銷處 | F72: 桃竹營銷處 | G72: 桃竹 | H72: DEALER_TT | I72: DLC_TT | J72: TW002347001B | K72: =VLOOKUP(A72,[2]總表!$A$1:$I$491,9,0) -> 1103014 | L72: 桃竹營銷處
A73: TW002349001B | B73: 金長益電器有限公司 | C73: 19640714 | D73: 16908253 | E73: 桃竹營銷處 | F73: 桃竹營銷處 | G73: 桃竹 | H73: DEALER_TT | I73: DLC_TT | J73: TW002349001B | K73: =VLOOKUP(A73,[2]總表!$A$1:$I$491,9,0) -> 1375610 | L73: 桃竹營銷處
A74: TW002351001B | B74: 雅光有限公司 | C74: 19590805 | D74: 01189353 | E74: 台北營銷處 | F74: 台北營銷處 | G74: 台北 | H74: DEALER_TT | I74: SPD_TT | J74: TW002351001B | K74: =VLOOKUP(A74,[2]總表!$A$1:$I$491,9,0) -> 4083424 | L74: 台北營銷處
A75: TW002351002B | B75: 雅光有限公司 | C75: XXXXXXXX | D75: XXXXXXXX | E75: ID/SAC Sales | F75: ID/SAC Sales | G75: ID & SAC | H75: B2B_TT | I75: CAC_TT
A76: TW002352001B | B76: 佳禾貿易有限公司 | C76: 19501112 | D76: 97310065 | E76: 台北營銷處 | F76: 台北營銷處 | G76: 台北 | H76: DEALER_TT | I76: DCS_TT | J76: TW002352001B | K76: =VLOOKUP(A76,[2]總表!$A$1:$I$491,9,0) -> 253953 | L76: 台北營銷處
A77: TW002359001B | B77: 宏仁電器行 | C77: 19690518 | D77: 92883893 | E77: 台北營銷處 | F77: 台北營銷處 | G77: 台北 | H77: DEALER_TT | I77: DCS_TT | J77: TW002359001B | K77: =VLOOKUP(A77,[2]總表!$A$1:$I$491,9,0) -> 0 | L77: 台北營銷處
A78: TW002363001B | B78: 吳頡興電器企業有限公司 | C78: 19551115 | D78: 22905634 | E78: 台北營銷處 | F78: 台北營銷處 | G78: 台北 | H78: DEALER_TT | I78: DCS_TT | J78: TW002363001B | K78: =VLOOKUP(A78,[2]總表!$A$1:$I$491,9,0) -> 89391 | L78: 台北營銷處
A79: TW002368001B | B79: 健融電器行 | C79: 19590810 | D79: 02153403 | E79: 台北營銷處 | F79: 台北營銷處 | G79: 台北 | H79: DEALER_TT | I79: DCS_TT | J79: TW002368001B | K79: =VLOOKUP(A79,[2]總表!$A$1:$I$491,9,0) -> 81376 | L79: 台北營銷處
A80: TW002372001B | B80: 承德國際有限公司 | C80: 19661020 | D80: 89960924 | E80: 台北營銷處 | F80: 台北營銷處 | G80: 台北 | H80: DEALER_TT | I80: DCS_TT | J80: TW002372001B | K80: =VLOOKUP(A80,[2]總表!$A$1:$I$491,9,0) -> 137696 | L80: 台北營銷處
A81: TW002375001B | B81: 建而福電器有限公司 | C81: 19470824 | D81: 33842192 | E81: 台北營銷處 | F81: 台北營銷處 | G81: 台北 | H81: DEALER_TT | I81: DLC_TT | J81: TW002375001B | L81: 台北營銷處
A82: TW002376001B | B82: 新弘貿易有限公司 | C82: 19590115 | D82: 23004274 | E82: 台北營銷處 | F82: 台北營銷處 | G82: 台北 | H82: DEALER_TT | I82: SPD_TT | J82: TW002376001B | K82: =VLOOKUP(A82,[2]總表!$A$1:$I$491,9,0) -> 783503 | L82: 台北營銷處
A83: TW002378001B | B83: 上順電器有限公司 | C83: 19550916 | D83: 23815317 | E83: 台北營銷處 | F83: 台北營銷處 | G83: 台北 | H83: DEALER_TT | I83: DCS_TT | J83: TW002378001B | K83: =VLOOKUP(A83,[2]總表!$A$1:$I$491,9,0) -> 158151 | L83: 台北營銷處
A84: TW002381001B | B84: 萬豐視聽電業有限公司 | C84: 19620320 | D84: 22592990 | E84: 台北營銷處 | F84: 台北營銷處 | G84: 台北 | H84: DEALER_TT | I84: DCS_TT | J84: TW002381001B | K84: =VLOOKUP(A84,[2]總表!$A$1:$I$491,9,0) -> 962609 | L84: 台北營銷處
A85: TW002382001B | B85: 訊立電器有限公司 | C85: 19560601 | D85: 12710694 | E85: 台北營銷處 | F85: 台北營銷處 | G85: 台北 | H85: DEALER_TT | I85: DLC_TT | J85: TW002382001B | K85: =VLOOKUP(A85,[2]總表!$A$1:$I$491,9,0) -> 0 | L85: 台北營銷處
A86: TW002387001B | B86: 鎮吉實業 | C86: 19651125 | D86: 70662642 | E86: 台北營銷處 | F86: 台北營銷處 | G86: 台北 | H86: DEALER_TT | I86: DCS_TT
A87: TW002391001B | B87: 益大家電事業有限公司 | C87: 24239141 | D87: 22573614 | E87: 台北營銷處 | F87: 台北營銷處 | G87: 台北 | H87: DEALER_TT | I87: DCS_TT | J87: TW002391001B | K87: =VLOOKUP(A87,[2]總表!$A$1:$I$491,9,0) -> 0 | L87: 台北營銷處
A88: TW002398001B | B88: 彥昌電器行 | C88: 26416154 | D88: 02300192 | E88: 台北營銷處 | F88: 台北營銷處 | G88: 台北 | H88: DEALER_TT | I88: DLC_TT | J88: TW002398001B | K88: =VLOOKUP(A88,[2]總表!$A$1:$I$491,9,0) -> 0 | L88: 台北營銷處
A89: TW002400001B | B89: 金亞實業有限公司 | C89: 26473088 | D89: 89230504 | E89: 台北營銷處 | F89: 台北營銷處 | G89: 台北 | H89: DEALER_TT | I89: DCS_TT | J89: TW002400001B | K89: =VLOOKUP(A89,[2]總表!$A$1:$I$491,9,0) -> 1337904 | L89: 台北營銷處
A90: TW002409001B | B90: 太空電器行 | C90: 19551106 | D90: 77300011 | E90: 高屏營銷處 | F90: 高屏營銷處 | G90: 高屏 | H90: DEALER_TT | I90: DLC_TT | J90: TW002409001B | K90: =VLOOKUP(A90,[2]總表!$A$1:$I$491,9,0) -> 0 | L90: 高屏營銷處
A91: TW002409002B | B91: 太空電器行 | C91: XXXXXXXX | D91: XXXXXXXX | E91: ID/SAC Sales | F91: ID/SAC Sales | G91: ID & SAC | H91: B2B_TT | I91: CAC_TT
A92: TW002410001B | B92: 全新電器有限公司 | C92: 19510722 | D92: 20760963 | E92: 台北營銷處 | F92: 台北營銷處 | G92: 台北 | H92: DEALER_TT | I92: DLC_TT
A93: TW002411001B | B93: 金門電器行 | C93: 19530605 | D93: 77265149 | E93: 高屏營銷處 | F93: 高屏營銷處 | G93: 高屏 | H93: DEALER_TT | I93: DCS_TT | J93: TW002411001B | K93: =VLOOKUP(A93,[2]總表!$A$1:$I$491,9,0) -> 286303 | L93: 高屏營銷處
A94: TW002416001B | B94: 國寶電業行 | C94: 19680525 | D94: 12180750 | E94: 台北營銷處 | F94: 台北營銷處 | G94: 台北 | H94: DEALER_TT | I94: DLC_TT | J94: TW002416001B | K94: =VLOOKUP(A94,[2]總表!$A$1:$I$491,9,0) -> 0 | L94: 台北營銷處
A95: TW002420001B | B95: 高登電器有限公司 | C95: 19551029 | D95: 22629645 | E95: 台北營銷處 | F95: 台北營銷處 | G95: 台北 | H95: DEALER_TT | I95: SPD_TT | J95: TW002420001B | K95: =VLOOKUP(A95,[2]總表!$A$1:$I$491,9,0) -> 262898 | L95: 台北營銷處
A96: TW002427001B | B96: 國豐電業商行 | C96: 19551014 | D96: 94836355 | E96: 台北營銷處 | F96: 台北營銷處 | G96: 台北 | H96: DEALER_TT | I96: DLC_TT | J96: TW002427001B | L96: 台北營銷處
A97: TW002428001B | B97: 精實電器行 | C97: 19740715 | D97: 64803602 | E97: 台北營銷處 | F97: 台北營銷處 | G97: 台北 | H97: DEALER_TT | I97: DCS_TT | J97: TW002428001B | K97: =VLOOKUP(A97,[2]總表!$A$1:$I$491,9,0) -> 0 | L97: 台北營銷處
A98: TW002431001B | B98: 一世代電氣行 | C98: 19620315 | D98: 18063076 | E98: 台北營銷處 | F98: 台北營銷處 | G98: 台北 | H98: DEALER_TT | I98: DLC_TT | J98: TW002431001B | K98: =VLOOKUP(A98,[2]總表!$A$1:$I$491,9,0) -> 0 | L98: 台北營銷處
A99: TW002434001B | B99: 上將電業社 | C99: 19550423 | D99: 92933057 | E99: 台北營銷處 | F99: 台北營銷處 | G99: 台北 | H99: DEALER_TT | I99: DLC_TT | J99: TW002434001B | K99: =VLOOKUP(A99,[2]總表!$A$1:$I$491,9,0) -> 237162 | L99: 台北營銷處
A100: TW002441001B | B100: 上揚電器行 | C100: 19660523 | D100: 02418034 | E100: 台北營銷處 | F100: 台北營銷處 | G100: 台北 | H100: DEALER_TT | I100: DCS_TT | J100: TW002441001B | K100: =VLOOKUP(A100,[2]總表!$A$1:$I$491,9,0) -> 238769 | L100: 台北營銷處
A101: TW002444001B | B101: 台灣電器專賣店 | C101: 19700805 | D101: 98077164 | E101: 台北營銷處 | F101: 台北營銷處 | G101: 台北 | H101: DEALER_TT | I101: DCS_TT | J101: TW002444001B | K101: =VLOOKUP(A101,[2]總表!$A$1:$I$491,9,0) -> 22529 | L101: 台北營銷處
A102: TW002448001B | B102: 宜勇電器 | C102: 19631117 | D102: 66256925 | E102: 台北營銷處 | F102: 台北營銷處 | G102: 台北 | H102: DEALER_TT | I102: DLC_TT
A103: TW002450001B | B103: 日大電業行 | C103: 19770914 | D103: 40523763 | E103: 台北營銷處 | F103: 台北營銷處 | G103: 台北 | H103: DEALER_TT | I103: DCS_TT | J103: TW002450001B | K103: =VLOOKUP(A103,[2]總表!$A$1:$I$491,9,0) -> 32319 | L103: 台北營銷處
A104: TW002456001B | B104: 燦坤實業股份有限公司 | C104: 69568009 | D104: 69568009 | E104: MMCS-燦坤 | F104: 燦坤 | G104: MMCS | H104: MMCS_TK3C | I104: CSC_TT | J104: TW002456001B | K104: =VLOOKUP(A104,[2]總表!$A$1:$I$491,9,0) -> 147185165 | L104: 燦坤
A105: TW002501001B | B105: 家福股份有限公司總公司 | C105: 22662550 | D105: 22662550 | E105: MMCS-家福 | F105: 家樂福 | G105: MMCS | H105: MMCS_C4 | I105: MMC_TT | J105: TW002501001B | K105: =VLOOKUP(A105,[2]總表!$A$1:$I$491,9,0) -> 121751437 | L105: 家樂福
A106: TW002514001B | B106: 今漢電器有限公司 | C106: 19591213 | D106: 22117460 | E106: 台北營銷處 | F106: 台北營銷處 | G106: 台北 | H106: DEALER_TT | I106: SPD_TT | J106: TW002514001B | K106: =VLOOKUP(A106,[2]總表!$A$1:$I$491,9,0) -> 342977 | L106: 台北營銷處
A107: TW002516001B | B107: 順寶電器 | C107: 19520904 | D107: 34159393 | E107: 台北營銷處 | F107: 台北營銷處 | G107: 台北 | H107: DEALER_TT | I107: DLC_TT
A108: TW002525001B | B108: 大潤發流通事業股份有限公司 | C108: 97165560 | D108: 97165560 | E108: MMCS-大潤發 | F108: 大潤發 | G108: MMCS | H108: MMCS_RT | I108: MMC_TT | J108: TW002525001B | K108: =VLOOKUP(A108,[2]總表!$A$1:$I$491,9,0) -> 23982821 | L108: 大潤發
A109: TW002529001B | B109: 遠百企業股份有限公司 | C109: 05714195 | D109: 05714195 | E109: MMCS-愛買 | F109: 愛買 | G109: MMCS | H109: MMCS_OTHERS | I109: MMC_TT | J109: TW002529001B | K109: =VLOOKUP(A109,[2]總表!$A$1:$I$491,9,0) -> 14914895 | L109: 愛買
A110: TW002535001B | B110: 瑞豪電器行 | C110: 19711205 | D110: 67899377 | E110: 台北營銷處 | F110: 台北營銷處 | G110: 台北 | H110: DEALER_TT | I110: DLC_TT | J110: TW002535001B | K110: =VLOOKUP(A110,[2]總表!$A$1:$I$491,9,0) -> 37238 | L110: 台北營銷處
A111: TW002542001B | B111: 佳麗寶股份有限公司 | C111: 19470128 | D111: 04897247 | E111: 台北營銷處 | F111: 台北營銷處 | G111: 台北 | H111: DEALER_TT | I111: DCS_TT
A112: TW002557001B | B112: 全民電子音響專賣店 | C112: TW002557 | D112: 77593945 | E112: 台中營銷處 | F112: 台中營銷處 | G112: 台中 | H112: DEALER_TT | I112: SPD_TT | J112: TW002557001B | K112: =VLOOKUP(A112,[2]總表!$A$1:$I$491,9,0) -> 613136 | L112: 台中營銷處
A113: TW002572001B | B113: 新傑電器有限公司 | C113: 19540819 | D113: 12749635 | E113: 高屏營銷處 | F113: 高屏營銷處 | G113: 高屏 | H113: DEALER_TT | I113: SPD_TT | J113: TW002572001B | K113: =VLOOKUP(A113,[2]總表!$A$1:$I$491,9,0) -> 436193 | L113: 高屏營銷處
A114: TW002575001B | B114: 東欣電器商行 | C114: 19510527 | D114: 08001827 | E114: 高屏營銷處 | F114: 高屏營銷處 | G114: 高屏 | H114: DEALER_TT | I114: DCS_TT | J114: TW002575001B | K114: =VLOOKUP(A114,[2]總表!$A$1:$I$491,9,0) -> 18619 | L114: 高屏營銷處
A115: TW002630001B | B115: 錦穗實業社 | C115: 19571107 | D115: 73713103 | E115: 嘉南營銷處 | F115: 嘉南營銷處 | G115: 嘉南 | H115: DEALER_TT | I115: DCS_TT | J115: TW002630001B | K115: =VLOOKUP(A115,[2]總表!$A$1:$I$491,9,0) -> 18672 | L115: 嘉南營銷處
A116: TW002652001B | B116: 第二電器音響有限公司 | C116: 19600410 | D116: 33837276 | E116: 台北營銷處 | F116: 台北營銷處 | G116: 台北 | H116: DEALER_TT | I116: DCS_TT | J116: TW002652001B | K116: =VLOOKUP(A116,[2]總表!$A$1:$I$491,9,0) -> 1467537 | L116: 台北營銷處
A117: TW002666001B | B117: 世和電器行 | C117: 19661031 | D117: 87705862 | E117: 桃竹營銷處 | F117: 桃竹營銷處 | G117: 桃竹 | H117: DEALER_TT | I117: DLC_TT
A118: TW002674001B | B118: 明聳企業有限公司 | C118: XXXXXXXX | D118: XXXXXXXX | E118: ID/SAC Sales | F118: ID/SAC Sales | G118: ID & SAC | H118: B2B_TT | I118: CAC_TT
A119: TW002675001B | B119: 利聲家電有限公司 | C119: 19470925 | D119: 86101317 | E119: 嘉南營銷處 | F119: 嘉南營銷處 | G119: 嘉南 | H119: DEALER_TT | I119: DCS_TT | J119: TW002675001B | K119: =VLOOKUP(A119,[2]總表!$A$1:$I$491,9,0) -> 116806 | L119: 嘉南營銷處
A120: TW002677001B | B120: 銘山電器 | C120: 23393762 | D120: 23328168 | E120: 台中營銷處 | F120: 台中營銷處 | G120: 台中 | H120: DEALER_TT | I120: DLC_TT
A121: TW002678001B | B121: 昇泰電業行 | C121: TW002678 | D121: 05830687 | E121: 台中營銷處 | F121: 台中營銷處 | G121: 台中 | H121: DEALER_TT | I121: DLC_TT
A122: TW002685001B | B122: 威揚電器行 | C122: 19690225 | D122: 17276277 | E122: 台北營銷處 | F122: 台北營銷處 | G122: 台北 | H122: DEALER_TT | I122: SPD_TT | J122: TW002685001B | K122: =VLOOKUP(A122,[2]總表!$A$1:$I$491,9,0) -> 73288 | L122: 台北營銷處
A123: TW002710001B | B123: 建利電子音響 | C123: 19580810 | D123: 18324380 | E123: 台中營銷處 | F123: 台中營銷處 | G123: 台中 | H123: DEALER_TT | I123: DLC_TT
A124: TW002718001B | B124: 全國電子股份有限公司 | C124: 22006252 | D124: 22006252 | E124: MMCS-全國 | F124: 全國 | G124: MMCS | H124: MMCS_E-LIFE | I124: CSC_TT | J124: TW002718001B | K124: =VLOOKUP(A124,[2]總表!$A$1:$I$491,9,0) -> 241117040 | L124: 全國
A125: TW002720001B | B125: 天聲電器商行 | C125: 19540401 | D125: 98249862 | E125: 桃竹營銷處 | F125: 桃竹營銷處 | G125: 桃竹 | H125: DEALER_TT | I125: DLC_TT | J125: TW002720001B | K125: =VLOOKUP(A125,[2]總表!$A$1:$I$491,9,0) -> 23292 | L125: 桃竹營銷處
A126: TW002721001B | B126: 統偉視聽工程有限公司 | C126: 19591014 | D126: 22669408 | E126: 桃竹營銷處 | F126: 桃竹營銷處 | G126: 桃竹 | H126: DEALER_TT | I126: DCS_TT | J126: TW002721001B | K126: =VLOOKUP(A126,[2]總表!$A$1:$I$491,9,0) -> 115120 | L126: 桃竹營銷處
A127: TW002725001B | B127: 侑興電器有限公司 | C127: TW002725 | D127: 22682057 | E127: 台中營銷處 | F127: 台中營銷處 | G127: 台中 | H127: DEALER_TT | I127: DLC_TT | J127: TW002725001B | L127: 台中營銷處
A128: TW002725002B | B128: 侑興電器有限公司 | C128: XXXXXXXX | D128: XXXXXXXX | E128: ID/SAC Sales | F128: ID/SAC Sales | G128: ID & SAC | H128: B2B_TT | I128: CAC_TT
A129: TW002745001B | B129: 全英電器有限公司 | C129: 19530909 | D129: 30976506 | E129: 台北營銷處 | F129: 台北營銷處 | G129: 台北 | H129: DEALER_TT | I129: DCS_TT | J129: TW002745001B | K129: =VLOOKUP(A129,[2]總表!$A$1:$I$491,9,0) -> 0 | L129: 台北營銷處
A130: TW002748001B | B130: 創作電子音響專賣店 | C130: TW002748 | D130: 81964433 | E130: 台中營銷處 | F130: 台中營銷處 | G130: 台中 | H130: DEALER_TT | I130: SPD_TT | J130: TW002748001B | K130: =VLOOKUP(A130,[2]總表!$A$1:$I$491,9,0) -> 54153 | L130: 台中營銷處
A131: TW002750001B | B131: 集雅社股份有限公司 | C131: 89266170 | D131: 89266170 | E131: HPC | F131: 百貨 | G131: 百貨 | H131: DEALER_DEPT | I131: DEALER_DEPT | J131: TW002750001B | K131: =VLOOKUP(A131,[2]總表!$A$1:$I$491,9,0) -> 66923582 | L131: 百貨
A132: TW002755001B | B132: 聯鈦冷凍空調電器行 | C132: 19660924 | D132: 14156334 | E132: 嘉南營銷處 | F132: 嘉南營銷處 | G132: 嘉南 | H132: DEALER_TT | I132: DCS_TT | J132: TW002755001B | K132: =VLOOKUP(A132,[2]總表!$A$1:$I$491,9,0) -> 178889 | L132: 嘉南營銷處
A133: TW002757001B | B133: 慧聲電器行 | C133: 19601115 | D133: 78215533 | E133: 台北營銷處 | F133: 台北營銷處 | G133: 台北 | H133: DEALER_TT | I133: SPD_TT | J133: TW002757001B | K133: =VLOOKUP(A133,[2]總表!$A$1:$I$491,9,0) -> 0 | L133: 台北營銷處
A134: TW002758001B | B134: 秀翔實業有限公司 | C134: 89429694 | D134: 89429694 | E134: HPC | F134: 百貨 | G134: 百貨 | H134: DEALER_DEPT | I134: DEALER_DEPT | J134: TW002758001B | K134: =VLOOKUP(A134,[2]總表!$A$1:$I$491,9,0) -> 5358452 | L134: 百貨
A135: TW002761001B | B135: 憶豐電器有限公司 | C135: 19670109 | D135: 47109086 | E135: 桃竹營銷處 | F135: 桃竹營銷處 | G135: 桃竹 | H135: DEALER_TT | I135: DCS_TT | J135: TW002761001B | K135: =VLOOKUP(A135,[2]總表!$A$1:$I$491,9,0) -> 75836 | L135: 桃竹營銷處
A136: TW002762001B | B136: 員毅電器有限公司 | C136: TW002762 | D136: 16929102 | E136: 台中營銷處 | F136: 台中營銷處 | G136: 台中 | H136: DEALER_TT | I136: DLC_TT | J136: TW002762001B | K136: =VLOOKUP(A136,[2]總表!$A$1:$I$491,9,0) -> 156054 | L136: 台中營銷處
A137: TW002764001B | B137: 弘象電器有限公司 | C137: 19670507 | D137: 97316526 | E137: 台北營銷處 | F137: 台北營銷處 | G137: 台北 | H137: DEALER_TT | I137: SPD_TT | J137: TW002764001B | K137: =VLOOKUP(A137,[2]總表!$A$1:$I$491,9,0) -> 137135 | L137: 台北營銷處
A138: TW002769001B | B138: 東農電器行 | C138: 19611101 | D138: 78766509 | E138: 高屏營銷處 | F138: 高屏營銷處 | G138: 高屏 | H138: DEALER_TT | I138: SPD_TT | J138: TW002769001B | K138: =VLOOKUP(A138,[2]總表!$A$1:$I$491,9,0) -> 1359681 | L138: 高屏營銷處
A139: TW002769002B | B139: 東農電器行 | C139: XXXXXXXX | D139: XXXXXXXX | E139: ID/SAC Sales | F139: ID/SAC Sales | G139: ID & SAC | H139: B2B_TT | I139: CAC_TT
A140: TW002780001B | B140: 金銓電器行 | C140: TW002780 | D140: 13759385 | E140: 台中營銷處 | F140: 台中營銷處 | G140: 台中 | H140: DEALER_TT | I140: DCS_TT | J140: TW002780001B | K140: =VLOOKUP(A140,[2]總表!$A$1:$I$491,9,0) -> 122811 | L140: 台中營銷處
A141: TW002789001B | B141: 宏昇電器行 | C141: 19671229 | D141: 97842555 | E141: 台中營銷處 | F141: 台中營銷處 | G141: 台中 | H141: DEALER_TT | I141: SPD_TT | J141: TW002789001B | K141: =VLOOKUP(A141,[2]總表!$A$1:$I$491,9,0) -> 543767 | L141: 台中營銷處
A142: TW002801001B | B142: 銘信視聽電器城 | C142: 19710720 | D142: 92811337 | E142: 台中營銷處 | F142: 台中營銷處 | G142: 台中 | H142: DEALER_TT | I142: DLC_TT | J142: TW002801001B | K142: =VLOOKUP(A142,[2]總表!$A$1:$I$491,9,0) -> 0 | L142: 台中營銷處
A143: TW002811001B | B143: 棋杰電器行 | C143: 19650706 | D143: 08016878 | E143: 高屏營銷處 | F143: 高屏營銷處 | G143: 高屏 | H143: DEALER_TT | I143: SPD_TT | J143: TW002811001B | K143: =VLOOKUP(A143,[2]總表!$A$1:$I$491,9,0) -> 546671 | L143: 高屏營銷處
A144: TW002843001B | B144: 吉田電器行 | C144: 19620111 | D144: 17683437 | E144: 桃竹營銷處 | F144: 桃竹營銷處 | G144: 桃竹 | H144: DEALER_TT | I144: DCS_TT | J144: TW002843001B | K144: =VLOOKUP(A144,[2]總表!$A$1:$I$491,9,0) -> 46854 | L144: 桃竹營銷處
A145: TW002851001B | B145: 隆慶電器行 | C145: 47374042 | D145: 47374803 | E145: 台中營銷處 | F145: 台中營銷處 | G145: 台中 | H145: DEALER_TT | I145: SPD_TT | J145: TW002851001B | K145: =VLOOKUP(A145,[2]總表!$A$1:$I$491,9,0) -> 1292788 | L145: 台中營銷處
A146: TW002856001B | B146: 老雙億實業有限公司 | C146: 19490915 | D146: 35957606 | E146: 台北營銷處 | F146: 台北營銷處 | G146: 台北 | H146: DEALER_TT | I146: DCS_TT | J146: TW002856001B | K146: =VLOOKUP(A146,[2]總表!$A$1:$I$491,9,0) -> 425692 | L146: 台北營銷處
A147: TW002858001B | B147: 豐昌電器行 | C147: 19630721 | D147: 06565736 | E147: 嘉南營銷處 | F147: 嘉南營銷處 | G147: 嘉南 | H147: DEALER_TT | I147: DCS_TT | J147: TW002858001B | K147: =VLOOKUP(A147,[2]總表!$A$1:$I$491,9,0) -> 0 | L147: 嘉南營銷處
A148: TW002861001B | B148: 昇廣電器有限公司 | C148: 19611020 | D148: 16498693 | E148: 台中營銷處 | F148: 台中營銷處 | G148: 台中 | H148: DEALER_TT | I148: DLC_TT | J148: TW002861001B | K148: =VLOOKUP(A148,[2]總表!$A$1:$I$491,9,0) -> 192357 | L148: 台中營銷處
A149: TW002870001B | B149: 松立電業社 | C149: 19560806 | D149: 90720487 | E149: 高屏營銷處 | F149: 高屏營銷處 | G149: 高屏 | H149: DEALER_TT | I149: DLC_TT | J149: TW002870001B | K149: =VLOOKUP(A149,[2]總表!$A$1:$I$491,9,0) -> 0 | L149: 高屏營銷處
A150: TW002886001B | B150: 三信電氣行 | C150: 19570402 | D150: 08359830 | E150: 台中營銷處 | F150: 台中營銷處 | G150: 台中 | H150: DEALER_TT | I150: SPD_TT | J150: TW002886001B | K150: =VLOOKUP(A150,[2]總表!$A$1:$I$491,9,0) -> 1117440 | L150: 台中營銷處
A151: TW002887001B | B151: 仙風電器有限公司 | C151: XXXXXXXX | D151: XXXXXXXX | E151: 桃竹營銷處 | F151: 桃竹營銷處 | G151: 桃竹 | H151: DEALER_TT | I151: DCS_TT | J151: TW002887001B | K151: =VLOOKUP(A151,[2]總表!$A$1:$I$491,9,0) -> 233504 | L151: 桃竹營銷處
A152: TW002896001B | B152: 三星電器行 | C152: 19670620 | D152: 59096683 | E152: 台中營銷處 | F152: 台中營銷處 | G152: 台中 | H152: DEALER_TT | I152: DCS_TT | J152: TW002896001B | K152: =VLOOKUP(A152,[2]總表!$A$1:$I$491,9,0) -> 75669 | L152: 台中營銷處
A153: TW002897001B | B153: 南山電器行 | C153: 19700420 | D153: 17925152 | E153: 台北營銷處 | F153: 台北營銷處 | G153: 台北 | H153: DEALER_TT | I153: DLC_TT
A154: TW002904001B | B154: 天烽電器有限公司 | C154: 19711108 | D154: 80272502 | E154: 台北營銷處 | F154: 台北營銷處 | G154: 台北 | H154: DEALER_TT | I154: SPD_TT | J154: TW002904001B | K154: =VLOOKUP(A154,[2]總表!$A$1:$I$491,9,0) -> 166176 | L154: 台北營銷處
A155: TW002919001B | B155: 建鑫電器行 | C155: 19721112 | D155: 18282184 | E155: 嘉南營銷處 | F155: 嘉南營銷處 | G155: 嘉南 | H155: DEALER_TT | I155: DCS_TT | J155: TW002919001B | K155: =VLOOKUP(A155,[2]總表!$A$1:$I$491,9,0) -> 56580 | L155: 嘉南營銷處
A156: TW002927001B | B156: 中信冷凍電器行 | C156: 19710227 | D156: 19801699 | E156: 高屏營銷處 | F156: 高屏營銷處 | G156: 高屏 | H156: DEALER_TT | I156: DCS_TT | J156: TW002927001B | K156: =VLOOKUP(A156,[2]總表!$A$1:$I$491,9,0) -> 1136647 | L156: 高屏營銷處
A157: TW002945001B | B157: 勁鋒電器行 | C157: 19641113 | D157: 87753771 | E157: 高屏營銷處 | F157: 高屏營銷處 | G157: 高屏 | H157: DEALER_TT | I157: DLC_TT | J157: TW002945001B | K157: =VLOOKUP(A157,[2]總表!$A$1:$I$491,9,0) -> 0 | L157: 高屏營銷處
A158: TW002946001B | B158: 佑均電器商行 | C158: 19800403 | D158: 98119827 | E158: 桃竹營銷處 | F158: 桃竹營銷處 | G158: 桃竹 | H158: DEALER_TT | I158: DLC_TT | J158: TW002946001B
A159: TW002950001B | B159: 廣昌電器行 | C159: TW002950 | D159: 97885688 | E159: 台中營銷處 | F159: 台中營銷處 | G159: 台中 | H159: DEALER_TT | I159: SPD_TT | J159: TW002950001B | K159: =VLOOKUP(A159,[2]總表!$A$1:$I$491,9,0) -> 195868 | L159: 台中營銷處
A160: TW002952001B | B160: 廣駿電器行 | C160: 24925933 | D160: 24921827 | E160: 台中營銷處 | F160: 台中營銷處 | G160: 台中 | H160: DEALER_TT | I160: DCS_TT | J160: TW002952001B | K160: =VLOOKUP(A160,[2]總表!$A$1:$I$491,9,0) -> 0 | L160: 台中營銷處
A161: TW002960001B | B161: 正賢電器行 | C161: TW002960 | D161: 84042476 | E161: 台中營銷處 | F161: 台中營銷處 | G161: 台中 | H161: DEALER_TT | I161: DCS_TT | J161: TW002960001B | K161: =VLOOKUP(A161,[2]總表!$A$1:$I$491,9,0) -> 78077 | L161: 台中營銷處
A162: TW002964001B | B162: 台灣樂金顯示科技股份有限公司 | C162: XXXXXXXX | D162: XXXXXXXX | E162: 台北營銷處 | F162: 台北營銷處 | G162: 台北 | H162: DEALER_TT | I162: ETC_TT
A163: TW002965001B | B163: 永定電器有限公司 | C163: 19781001 | D163: 96857734 | E163: 高屏營銷處 | F163: 高屏營銷處 | G163: 高屏 | H163: DEALER_TT | I163: DCS_TT | J163: TW002965001B | K163: =VLOOKUP(A163,[2]總表!$A$1:$I$491,9,0) -> 203263 | L163: 高屏營銷處
A164: TW002975001B | B164: 佳美電器行 | C164: 19550202 | D164: 06644845 | E164: 嘉南營銷處 | F164: 嘉南營銷處 | G164: 嘉南 | H164: DEALER_TT | I164: DLC_TT
A165: TW002978001B | B165: 匯豐家電有限公司 | C165: 23383896 | D165: 23366784 | E165: 台中營銷處 | F165: 台中營銷處 | G165: 台中 | H165: DEALER_TT | I165: DLC_TT | J165: TW002978001B | K165: =VLOOKUP(A165,[2]總表!$A$1:$I$491,9,0) -> 19397 | L165: 台中營銷處
A166: TW002989001B | B166: 隆松電器有限公司 | C166: 36663666 | D166: 69845546 | E166: 嘉南營銷處 | F166: 嘉南營銷處 | G166: 嘉南 | H166: DEALER_TT | I166: DCS_TT | J166: TW002989001B | K166: =VLOOKUP(A166,[2]總表!$A$1:$I$491,9,0) -> 113662 | L166: 嘉南營銷處
A167: TW002990001B | B167: 國際水電冷氣工程行 | C167: 19651008 | D167: 49776492 | E167: 桃竹營銷處 | F167: 桃竹營銷處 | G167: 桃竹 | H167: DEALER_TT | I167: DLC_TT
A168: TW002991001B | B168: 偉誠電器 | C168: 19740120 | D168: 96888413 | E168: 台北營銷處 | F168: 台北營銷處 | G168: 台北 | H168: DEALER_TT | I168: DLC_TT
A169: TW002997001B | B169: 鎰銘電器有限公司 | C169: 19670216 | D169: 80103181 | E169: 台北營銷處 | F169: 台北營銷處 | G169: 台北 | H169: DEALER_TT | I169: SPD_TT | J169: TW002997001B | K169: =VLOOKUP(A169,[2]總表!$A$1:$I$491,9,0) -> 1612745 | L169: 台北營銷處
A170: TW003001001B | B170: 銘盛電器有限公司 | C170: 19560401 | D170: 97184980 | E170: 台北營銷處 | F170: 台北營銷處 | G170: 台北 | H170: DEALER_TT | I170: DLC_TT | J170: TW003001001B | K170: =VLOOKUP(A170,[2]總表!$A$1:$I$491,9,0) -> 14454 | L170: 台北營銷處
A171: TW003013001B | B171: 重慶國際有限公司 | C171: TW003013 | D171: 79955373 | E171: 台中營銷處 | F171: 台中營銷處 | G171: 台中 | H171: DEALER_TT | I171: DCS_TT | J171: TW003013001B | K171: =VLOOKUP(A171,[2]總表!$A$1:$I$491,9,0) -> 60613 | L171: 台中營銷處
A172: TW003020002B | B172: 華笙音響企業有限公司 | C172: TW003020 | D172: 23688754 | E172: 台中營銷處 | F172: 台中營銷處 | G172: 台中 | H172: DEALER_TT | I172: DLC_TT | J172: TW003020002B | K172: =VLOOKUP(A172,[2]總表!$A$1:$I$491,9,0) -> 0 | L172: 台中營銷處
A173: TW003023001B | B173: 翠亨企業股份有限公司 | C173: 19820909 | D173: 16129431 | E173: 高屏營銷處 | F173: 高屏營銷處 | G173: 高屏 | H173: DEALER_TT | I173: DCS_TT | J173: TW003023001B | K173: =VLOOKUP(A173,[2]總表!$A$1:$I$491,9,0) -> 248838 | L173: 高屏營銷處
A174: TW003029001B | B174: 大統電器行 | C174: 19581106 | D174: 02846102 | E174: 桃竹營銷處 | F174: 桃竹營銷處 | G174: 桃竹 | H174: DEALER_TT | I174: DCS_TT | J174: TW003029001B | K174: =VLOOKUP(A174,[2]總表!$A$1:$I$491,9,0) -> 522594 | L174: 桃竹營銷處
A175: TW003034001B | B175: 九瑜電氣行 | C175: TW003034 | D175: 97887216 | E175: 台中營銷處 | F175: 台中營銷處 | G175: 台中 | H175: DEALER_TT | I175: DLC_TT | J175: TW003034001B | K175: =VLOOKUP(A175,[2]總表!$A$1:$I$491,9,0) -> 0 | L175: 台中營銷處
A176: TW003035001B | B176: 友信電器有限公司 | C176: 19571230 | D176: 97341659 | E176: 嘉南營銷處 | F176: 嘉南營銷處 | G176: 嘉南 | H176: DEALER_TT | I176: DLC_TT | J176: TW003035001B | K176: =VLOOKUP(A176,[2]總表!$A$1:$I$491,9,0) -> 18619 | L176: 嘉南營銷處
A177: TW003040001B | B177: 悅鼎電器有限公司 | C177: 19690102 | D177: 84693028 | E177: 台北營銷處 | F177: 台北營銷處 | G177: 台北 | H177: DEALER_TT | I177: SPD_TT | J177: TW003040001B | K177: =VLOOKUP(A177,[2]總表!$A$1:$I$491,9,0) -> 1837226 | L177: 台北營銷處
A178: TW003052001B | B178: 蓁筳園企業有限公司 | C178: XXXXXXXX | D178: XXXXXXXX | E178: ID Sales | F178: ID Sales | G178: ID Sales
A179: TW003052002B | B179: 蓁筳園企業有限公司 | C179: XXXXXXXX | D179: XXXXXXXX | E179: ID/SAC Sales | F179: ID/SAC Sales | G179: ID & SAC | H179: B2B_TT | I179: CAC_TT
A180: TW003053001B | B180: 尚德師企業有限公司 | C180: 19630211 | D180: 12933843 | E180: 台北營銷處 | F180: 台北營銷處 | G180: 台北 | H180: DEALER_TT | I180: DLC_TT | J180: TW003053001B | K180: =VLOOKUP(A180,[2]總表!$A$1:$I$491,9,0) -> 0 | L180: 台北營銷處
A181: TW003054001B | B181: 上益 | C181: 19550615 | D181: 15719466 | E181: 嘉南營銷處 | F181: 嘉南營銷處 | G181: 嘉南 | H181: DEALER_TT | I181: DLC_TT
A182: TW003071001B | B182: 泰昀企業有限公司 | C182: 19490915 | D182: 22866800 | E182: 台北營銷處 | F182: 台北營銷處 | G182: 台北 | H182: DEALER_TT | I182: SPD_TT | J182: TW003071001B | K182: =VLOOKUP(A182,[2]總表!$A$1:$I$491,9,0) -> 895021 | L182: 台北營銷處
A183: TW003094001B | B183: 大銀幕視聽音響有限公司 | C183: TW003094 | D183: 97033415 | E183: 台中營銷處 | F183: 台中營銷處 | G183: 台中 | H183: DEALER_TT | I183: DCS_TT | J183: TW003094001B | K183: =VLOOKUP(A183,[2]總表!$A$1:$I$491,9,0) -> 0 | L183: 台中營銷處
A184: TW003096001B | B184: 極品家電 | C184: 47226905 | D184: 47293663 | E184: 台中營銷處 | F184: 台中營銷處 | G184: 台中 | H184: DEALER_TT | I184: DCS_TT
A185: TW003125001B | B185: 宏暉電器行 | C185: 19730421 | D185: 14194891 | E185: 高屏營銷處 | F185: 高屏營銷處 | G185: 高屏 | H185: DEALER_TT | I185: DLC_TT | J185: TW003125001B | K185: =VLOOKUP(A185,[2]總表!$A$1:$I$491,9,0) -> 0 | L185: 高屏營銷處
A186: TW003126001B | B186: 東圓電器行 | C186: 19811028 | D186: 19656246 | E186: 桃竹營銷處 | F186: 桃竹營銷處 | G186: 桃竹 | H186: DEALER_TT | I186: SPD_TT | J186: TW003126001B | K186: =VLOOKUP(A186,[2]總表!$A$1:$I$491,9,0) -> 0 | L186: 桃竹營銷處
A187: TW003127001B | B187: 富盟企業社 | C187: TW003127 | D187: 13400211 | E187: 台中營銷處 | F187: 台中營銷處 | G187: 台中 | H187: DEALER_TT | I187: DCS_TT | J187: TW003127001B | K187: =VLOOKUP(A187,[2]總表!$A$1:$I$491,9,0) -> 202639 | L187: 台中營銷處
A188: TW003130001B | B188: 展碁國際股份有限公司 | C188: 20773257 | D188: 20773257 | E188: HPC | F188: IT | G188: IT | H188: IT_TT | I188: IT_TT | J188: TW003130001B | K188: =VLOOKUP(A188,[2]總表!$A$1:$I$491,9,0) -> 22424994 | L188: IT
A189: TW003130002B | B189: 展碁國際股份有限公司 | C189: 20773257 | D189: 20773257 | E189: ID Sales | F189: ID Sales | G189: ID Sales | J189: TW003130002B | K189: =VLOOKUP(A189,[2]總表!$A$1:$I$491,9,0) -> 1837815 | L189: ID Sales Team
A190: TW003130004B | B190: 展碁國際股份有限公司 | C190: 20773257 | D190: 20773257 | E190: 台北營銷處 | F190: 台北營銷處 | G190: 台北 | H190: DEALER_TT | I190: DLC_TT
A191: TW003134001B | B191: 鴻輝電器有限公司 | C191: 19621230 | D191: 23548071 | E191: 台北營銷處 | F191: 台北營銷處 | G191: 台北 | H191: DEALER_TT | I191: DCS_TT | J191: TW003134001B | K191: =VLOOKUP(A191,[2]總表!$A$1:$I$491,9,0) -> 157278 | L191: 台北營銷處
A192: TW003145001B | B192: 京享企業行 | C192: 19601212 | D192: 12084709 | E192: 高屏營銷處 | F192: 高屏營銷處 | G192: 高屏 | H192: DEALER_TT | I192: DLC_TT | J192: TW003145001B
A193: TW003168001B | B193: 名揚家電行 | C193: 19630801 | D193: 17157223 | E193: 嘉南營銷處 | F193: 嘉南營銷處 | G193: 嘉南 | H193: DEALER_TT | I193: DLC_TT
A194: TW003169001B | B194: 欣益大企業有限公司 | C194: 19530717 | D194: 97413816 | E194: 嘉南營銷處 | F194: 嘉南營銷處 | G194: 嘉南 | H194: DEALER_TT | I194: DCS_TT | J194: TW003169001B | K194: =VLOOKUP(A194,[2]總表!$A$1:$I$491,9,0) -> 24640 | L194: 嘉南營銷處
A195: TW003173001B | B195: 弘侖電業有限公司 | C195: 19670219 | D195: 16187086 | E195: 桃竹營銷處 | F195: 桃竹營銷處 | G195: 桃竹 | H195: DEALER_TT | I195: DCS_TT | J195: TW003173001B | K195: =VLOOKUP(A195,[2]總表!$A$1:$I$491,9,0) -> 24620 | L195: 桃竹營銷處
A196: TW003180001B | B196: 翔韻電器有限公司 | C196: 19551220 | D196: 84143312 | E196: 台北營銷處 | F196: 台北營銷處 | G196: 台北 | H196: DEALER_TT | I196: DCS_TT | J196: TW003180001B | K196: =VLOOKUP(A196,[2]總表!$A$1:$I$491,9,0) -> 109985 | L196: 台北營銷處
A197: TW003181001B | B197: 神腦國際企業股份有限公司 | C197: 19520206 | D197: 12228473 | E197: 行動電話 | F197: 行動電話 | G197: 行動電話 | H197: GSM_TT | I197: GSM_TT | J197: TW003181001B | K197: =VLOOKUP(A197,[2]總表!$A$1:$I$491,9,0) -> 3819243 | L197: 行動電話
A198: TW003181002B | B198: 神腦 | C198: 22183588 | D198: 22183588 | E198: 行動電話 | F198: 行動電話 | G198: 行動電話 | H198: GSM_TT | I198: GSM_TT
A199: TW003182001B | B199: 聯強國際股份有限公司 | C199: 19561203 | D199: 23060541 | E199: 行動電話 | F199: 行動電話 | G199: 行動電話 | H199: GSM_TT | I199: GSM_TT | J199: TW003182001B | K199: 1 | L199: 行動電話
A200: TW003182002B | B200: 聯強國際股份有限公司 | C200: XXXXXXXX | D200: XXXXXXXX | E200: ID Sales | F200: ID Sales | G200: ID Sales | J200: TW003182002B | K200: =VLOOKUP(A200,[2]總表!$A$1:$I$491,9,0) -> 17926650 | L200: ID Sales Team
... 637 more rows

Sheet 預算表
A1: 注意事項：所有促銷活動獎勵辦法，依LG公司公告內容執行，需達成目標或協議後，方可取得下列協議獎勵。 LG公司同意之促銷活動皆須有[Promotion No.]，若無即為個人行為，LG公司概不予承認。
A3: 2021年01月 | B3: 台 灣 樂 金 電 器 股 份 有 限 公 司
A4: =確認code正確 ->  | B4: =店CODE -> 0 | D4: 密 碼
A5: 店Code： | C5: 第一組： | E5: =確認1 -> 0
A6: 店 名： | B6: =確認店 ->  | C6: 第二組： | E6: =確認2 -> 0
A7: =確認區 ->  | B7: =確認BG ->  | C7: =確認BG1 ->  | D7: =R好CODE1 ->  | E7: =R好CODE2 ->  | J7: =R好CODE3 -> 
A8: 店代號 | B8: Promotion No | C8: Promotion Name | D8: 起始日 | E8: 到期日 | F8: 獎勵內容 | G8: 型號 | H8: AMT/% | I8: 單價/%
J9: TW
J10: TW
J11: TW
J12: TW
J13: TW
J14: TW
J15: TW
J16: TW
J17: TW
J18: TW
J19: TW
J20: TW
J21: TW
J22: TW
J23: TW
J24: TW
J25: TW
J26: TW
J27: TW
J28: TW
J29: TW
J30: TW
J31: TW
J32: TW
J33: TW
J34: TW
J35: TW
J36: TW
J37: TW
J38: TW
J39: TW
J40: TW
J41: TW
J42: TW
J43: TW
J44: TW
J45: TW
J46: TW
J47: TW
J48: TW
J49: TW
J50: TW
J51: TW
J52: TW
J53: TW
J54: TW
J55: TW
J56: TW
J57: TW
J58: TW
J59: TW
J60: TW
J61: TW
J62: TW
J63: TW
J64: TW
J65: TW
J66: TW
J67: TW
J68: TW
J69: TW
J70: TW
J71: TW
J72: TW
J73: TW
J74: TW
J75: TW
J76: TW
J77: TW
J78: TW
J79: TW
J80: TW
J81: TW
J82: TW
J83: TW
J84: TW
J85: TW
J86: TW
J87: TW
J88: TW
J89: TW
J90: TW
J91: TW
J92: TW
J93: TW
J94: TW
J95: TW
J96: TW
J97: TW
J98: TW
J99: TW
J100: TW
J101: TW
J102: TW
J103: TW
J104: TW
J105: TW
J106: TW
J107: TW
J108: TW
J109: TW
J110: TW
J111: TW
J112: TW
J113: TW
J114: TW
J115: TW
J116: TW
J117: TW
J118: TW
J119: TW
J120: TW
J121: TW
J122: TW
J123: TW
J124: TW
J125: TW
J126: TW
J127: TW
J128: TW
J129: TW
J130: TW
J131: TW
J132: TW
J133: TW
J134: TW
J135: TW
J136: TW
J137: TW
J138: TW
J139: TW
J140: TW
J141: TW
J142: TW
J143: TW
J144: TW
J145: TW
J146: TW
J147: TW
J148: TW
J149: TW
J150: TW
J151: TW
J152: TW
J153: TW
J154: TW
J155: TW
J156: TW
J157: TW
J158: TW
J159: TW
J160: TW
J161: TW
J162: TW
J163: TW
J164: TW
J165: TW
J166: TW
J167: TW
J168: TW
J169: TW
J170: TW
J171: TW
J172: TW
J173: TW
J174: TW
J175: TW
J176: TW
J177: TW
J178: TW
J179: TW
J180: TW
J181: TW
J182: TW
J183: TW
J184: TW
J185: TW
J186: TW
J306: TW
J307: TW
J308: TW
J309: TW
J310: TW
J311: TW
J312: TW
J313: TW
J314: TW
J315: TW
J316: TW
J317: TW
J318: TW
J319: TW
J320: TW
... 27 more rows

Sheet BALANCE (hidden)
A1: Bill To Customer Code | B1: Bill To Customer Code | C1: Promotion No | D1: Promotion Name | E1: Start Date | F1: End Date | G1: Property Type | H1: Start Date | I1: End Date | J1: 內容 | K1: 店代號 | L1: 店名 | M1: NO | N1: AA | O1: AMT/% | P1: Description | Q1: Division | R1: Model | S1: Unit / % | T1: QTY / Sales | U1: Expected Cost
A2: =IF(RIGHT(B2,1)="H",LEFT(B2,11)&"B",B2) -> DEALER_TT | B2: DEALER_TT | C2: TT-NTSO-20201228-0005 | D2: HETV20201224-TV-Dealer-AdditionalSupport-CoreStore-2020model-202101 | E2: 20210101 | F2: 20210131 | G2: =MID(C2,4,4) -> NTSO | H2: =IF(OR($G2="NTSI",$G2="TTSI"),$E2,LEFT($E2,4)&"/"&MID($E2,5,2)&"/"&RIGHT($E2,2)) -> 2021/01/01 | I2: =IF(OR($G2="NTSI",$G2="TTSI"),$F2,LEFT($F2,4)&"/"&MID($F2,5,2)&"/"&RIGHT($F2,2)) -> 2021/01/31 | J2: 公司-電視-促銷加碼補助(2020核心店)-01~01 | K2: DEALER_TT | L2: Dealer_TT | M2: TW | O2: AMT | P2: 促銷加碼補助(2020核心店) | Q2: (空白) | R2: 75NANO91WNA.ATT | S2: 4762 | T2: 49 | U2: 233338
A3: DEALER_TT | B3: DEALER_TT | C3: TT-NTSO-20201228-0005 | D3: HETV20201224-TV-Dealer-AdditionalSupport-CoreStore-2020model-202101 | E3: 20210101 | F3: 20210131 | G3: NTSO | H3: 2021/01/01 | I3: 2021/01/31 | J3: 公司-電視-促銷加碼補助(2020核心店)-01~01 | K3: DEALER_TT | L3: Dealer_TT | M3: TW | O3: AMT | P3: 促銷加碼補助(2020核心店) | R3: 75NANO95WNA.ATT | S3: 7619 | T3: 12 | U3: 91428
A4: DEALER_TT | B4: DEALER_TT | C4: TT-NTSO-20201228-0005 | D4: HETV20201224-TV-Dealer-AdditionalSupport-CoreStore-2020model-202101 | E4: 20210101 | F4: 20210131 | G4: NTSO | H4: 2021/01/01 | I4: 2021/01/31 | J4: 公司-電視-促銷加碼補助(2020核心店)-01~01 | K4: DEALER_TT | L4: Dealer_TT | M4: TW | O4: AMT | P4: 促銷加碼補助(2020核心店) | R4: 86NANO91WNA.ATT | S4: 7619 | T4: 17 | U4: 129523
A5: DEALER_TT | B5: DEALER_TT | C5: TT-NTSO-20201228-0005 | D5: HETV20201224-TV-Dealer-AdditionalSupport-CoreStore-2020model-202101 | E5: 20210101 | F5: 20210131 | G5: NTSO | H5: 2021/01/01 | I5: 2021/01/31 | J5: 公司-電視-促銷加碼補助(2020核心店)-01~01 | K5: DEALER_TT | L5: Dealer_TT | M5: TW | O5: AMT | P5: 促銷加碼補助(2020核心店) | R5: OLED55CXPWA.ATT | S5: 2857 | T5: 55 | U5: 157135
A6: DEALER_TT | B6: DEALER_TT | C6: TT-NTSO-20201228-0005 | D6: HETV20201224-TV-Dealer-AdditionalSupport-CoreStore-2020model-202101 | E6: 20210101 | F6: 20210131 | G6: NTSO | H6: 2021/01/01 | I6: 2021/01/31 | J6: 公司-電視-促銷加碼補助(2020核心店)-01~01 | K6: DEALER_TT | L6: Dealer_TT | M6: TW | O6: AMT | P6: 促銷加碼補助(2020核心店) | R6: OLED65CXPWA.ATT | S6: 4762 | T6: 109 | U6: 519058
A7: DEALER_TT | B7: DEALER_TT | C7: TT-NTSO-20201228-0005 | D7: HETV20201224-TV-Dealer-AdditionalSupport-CoreStore-2020model-202101 | E7: 20210101 | F7: 20210131 | G7: NTSO | H7: 2021/01/01 | I7: 2021/01/31 | J7: 公司-電視-促銷加碼補助(2020核心店)-01~01 | K7: DEALER_TT | L7: Dealer_TT | M7: TW | O7: AMT | P7: 促銷加碼補助(2020核心店) | R7: OLED65GXPWA.ATT | S7: 7619 | T7: 18 | U7: 137142
A8: DEALER_TT | B8: DEALER_TT | C8: TT-NTSO-20201228-0005 | D8: HETV20201224-TV-Dealer-AdditionalSupport-CoreStore-2020model-202101 | E8: 20210101 | F8: 20210131 | G8: NTSO | H8: 2021/01/01 | I8: 2021/01/31 | J8: 公司-電視-促銷加碼補助(2020核心店)-01~01 | K8: DEALER_TT | L8: Dealer_TT | M8: TW | O8: AMT | P8: 促銷加碼補助(2020核心店) | R8: OLED65WXPWA.ATT | S8: 9524 | T8: 1 | U8: 9524
A9: DEALER_TT | B9: DEALER_TT | C9: TT-NTSO-20201228-0005 | D9: HETV20201224-TV-Dealer-AdditionalSupport-CoreStore-2020model-202101 | E9: 20210101 | F9: 20210131 | G9: NTSO | H9: 2021/01/01 | I9: 2021/01/31 | J9: 公司-電視-促銷加碼補助(2020核心店)-01~01 | K9: DEALER_TT | L9: Dealer_TT | M9: TW | O9: AMT | P9: 促銷加碼補助(2020核心店) | R9: OLED77CXPWA.ATT | S9: 14286 | T9: 9 | U9: 128574
A10: DEALER_TT | B10: DEALER_TT | C10: TT-NTSO-20201228-0006 | D10: HETV20201224-TV-Dealer-Credit Card-202101-202102 | E10: 20210101 | F10: 20210228 | G10: NTSO | H10: 2021/01/01 | I10: 2021/02/28 | J10: 公司-電視-分期補助-01~02 | K10: DEALER_TT | L10: Dealer_TT | M10: TW | O10: AMT | P10: 分期補助 | Q10: GLT | R10: =Q10 -> GLT | S10: 20000 | T10: 28 | U10: 560000
A11: DEALER_TT | B11: DEALER_TT | C11: TT-NTSO-20201228-0007 | D11: HETV20201224-TV-Dealer-PP-202101 | E11: 20210101 | F11: 20210131 | G11: NTSO | H11: 2021/01/01 | I11: 2021/01/31 | J11: 公司-電視-降價補庫存-01~01 | K11: DEALER_TT | L11: Dealer_TT | M11: TW | O11: AMT | P11: 降價補庫存 | Q11: (空白) | R11: OLED55CXPWA.ATT | S11: 8286 | T11: 198 | U11: 1640628
A12: DEALER_TT | B12: DEALER_TT | C12: TT-NTSO-20201228-0007 | D12: HETV20201224-TV-Dealer-PP-202101 | E12: 20210101 | F12: 20210131 | G12: NTSO | H12: 2021/01/01 | I12: 2021/01/31 | J12: 公司-電視-降價補庫存-01~01 | K12: DEALER_TT | L12: Dealer_TT | M12: TW | O12: AMT | P12: 降價補庫存 | R12: OLED65CXPWA.ATT | S12: 11683 | T12: 109 | U12: 1273447
A13: DEALER_TT | B13: DEALER_TT | C13: TT-NTSO-20201228-0007 | D13: HETV20201224-TV-Dealer-PP-202101 | E13: 20210101 | F13: 20210131 | G13: NTSO | H13: 2021/01/01 | I13: 2021/01/31 | J13: 公司-電視-降價補庫存-01~01 | K13: DEALER_TT | L13: Dealer_TT | M13: TW | O13: AMT | P13: 降價補庫存 | R13: OLED65GXPWA.ATT | S13: 16571 | T13: 92 | U13: 1524532
A14: DEALER_TT | B14: DEALER_TT | C14: TT-NTSO-20201228-0007 | D14: HETV20201224-TV-Dealer-PP-202101 | E14: 20210101 | F14: 20210131 | G14: NTSO | H14: 2021/01/01 | I14: 2021/01/31 | J14: 公司-電視-降價補庫存-01~01 | K14: DEALER_TT | L14: Dealer_TT | M14: TW | O14: AMT | P14: 降價補庫存 | R14: OLED65WXPWA.ATT | S14: 24857 | T14: 3 | U14: 74571
A15: DEALER_TT | B15: DEALER_TT | C15: TT-NTSO-20201228-0007 | D15: HETV20201224-TV-Dealer-PP-202101 | E15: 20210101 | F15: 20210131 | G15: NTSO | H15: 2021/01/01 | I15: 2021/01/31 | J15: 公司-電視-降價補庫存-01~01 | K15: DEALER_TT | L15: Dealer_TT | M15: TW | O15: AMT | P15: 降價補庫存 | R15: OLED77CXPWA.ATT | S15: 41429 | T15: 13 | U15: 538577
A16: DEALER_TT | B16: DEALER_TT | C16: TT-NTSO-20201228-0008 | D16: HETV20201224-TV-Dealer-SOA-2020model-202101 | E16: 20210101 | F16: 20210131 | G16: NTSO | H16: 2021/01/01 | I16: 2021/01/31 | J16: 公司-電視-促銷補助價差-01~01 | K16: DEALER_TT | L16: Dealer_TT | M16: TW | O16: AMT | P16: 促銷補助價差 | Q16: (空白) | R16: 65NANO81WNA.ATT | S16: 1657 | T16: 56 | U16: 92792
A17: DEALER_TT | B17: DEALER_TT | C17: TT-NTSO-20201228-0008 | D17: HETV20201224-TV-Dealer-SOA-2020model-202101 | E17: 20210101 | F17: 20210131 | G17: NTSO | H17: 2021/01/01 | I17: 2021/01/31 | J17: 公司-電視-促銷補助價差-01~01 | K17: DEALER_TT | L17: Dealer_TT | M17: TW | O17: AMT | P17: 促銷補助價差 | R17: 65NANO91WNA.ATT | S17: 2486 | T17: 52 | U17: 129272
A18: DEALER_TT | B18: DEALER_TT | C18: TT-NTSO-20201228-0008 | D18: HETV20201224-TV-Dealer-SOA-2020model-202101 | E18: 20210101 | F18: 20210131 | G18: NTSO | H18: 2021/01/01 | I18: 2021/01/31 | J18: 公司-電視-促銷補助價差-01~01 | K18: DEALER_TT | L18: Dealer_TT | M18: TW | O18: AMT | P18: 促銷補助價差 | R18: 65NANO95WNA.ATT | S18: 16571 | T18: 6 | U18: 99426
A19: DEALER_TT | B19: DEALER_TT | C19: TT-NTSO-20201228-0008 | D19: HETV20201224-TV-Dealer-SOA-2020model-202101 | E19: 20210101 | F19: 20210131 | G19: NTSO | H19: 2021/01/01 | I19: 2021/01/31 | J19: 公司-電視-促銷補助價差-01~01 | K19: DEALER_TT | L19: Dealer_TT | M19: TW | O19: AMT | P19: 促銷補助價差 | R19: 65UN7300PWC.ATT | S19: 4143 | T19: 1 | U19: 4143
A20: DEALER_TT | B20: DEALER_TT | C20: TT-NTSO-20201228-0008 | D20: HETV20201224-TV-Dealer-SOA-2020model-202101 | E20: 20210101 | F20: 20210131 | G20: NTSO | H20: 2021/01/01 | I20: 2021/01/31 | J20: 公司-電視-促銷補助價差-01~01 | K20: DEALER_TT | L20: Dealer_TT | M20: TW | O20: AMT | P20: 促銷補助價差 | R20: 65UN8100PWA.ATT | S20: 4971 | T20: 250 | U20: 1242750
A21: DEALER_TT | B21: DEALER_TT | C21: TT-NTSO-20201228-0008 | D21: HETV20201224-TV-Dealer-SOA-2020model-202101 | E21: 20210101 | F21: 20210131 | G21: NTSO | H21: 2021/01/01 | I21: 2021/01/31 | J21: 公司-電視-促銷補助價差-01~01 | K21: DEALER_TT | L21: Dealer_TT | M21: TW | O21: AMT | P21: 促銷補助價差 | R21: 75NANO91WNA.ATT | S21: 22454 | T21: 49 | U21: 1100246
A22: DEALER_TT | B22: DEALER_TT | C22: TT-NTSO-20201228-0008 | D22: HETV20201224-TV-Dealer-SOA-2020model-202101 | E22: 20210101 | F22: 20210131 | G22: NTSO | H22: 2021/01/01 | I22: 2021/01/31 | J22: 公司-電視-促銷補助價差-01~01 | K22: DEALER_TT | L22: Dealer_TT | M22: TW | O22: AMT | P22: 促銷補助價差 | R22: 75NANO95WNA.ATT | S22: 16571 | T22: 12 | U22: 198852
A23: DEALER_TT | B23: DEALER_TT | C23: TT-NTSO-20201228-0008 | D23: HETV20201224-TV-Dealer-SOA-2020model-202101 | E23: 20210101 | F23: 20210131 | G23: NTSO | H23: 2021/01/01 | I23: 2021/01/31 | J23: 公司-電視-促銷補助價差-01~01 | K23: DEALER_TT | L23: Dealer_TT | M23: TW | O23: AMT | P23: 促銷補助價差 | R23: 75UN8100PWB.ATT | S23: 6629 | T23: 69 | U23: 457401
A24: DEALER_TT | B24: DEALER_TT | C24: TT-NTSO-20201228-0008 | D24: HETV20201224-TV-Dealer-SOA-2020model-202101 | E24: 20210101 | F24: 20210131 | G24: NTSO | H24: 2021/01/01 | I24: 2021/01/31 | J24: 公司-電視-促銷補助價差-01~01 | K24: DEALER_TT | L24: Dealer_TT | M24: TW | O24: AMT | P24: 促銷補助價差 | R24: 86NANO91WNA.ATT | S24: 16571 | T24: 17 | U24: 281707
A25: DEALER_TT | B25: DEALER_TT | C25: TT-NTSO-20201228-0008 | D25: HETV20201224-TV-Dealer-SOA-2020model-202101 | E25: 20210101 | F25: 20210131 | G25: NTSO | H25: 2021/01/01 | I25: 2021/01/31 | J25: 公司-電視-促銷補助價差-01~01 | K25: DEALER_TT | L25: Dealer_TT | M25: TW | O25: AMT | P25: 促銷補助價差 | R25: 65UN8000PWA.ATT | S25: 4971 | T25: 221 | U25: 1098591
A26: DEALER_TT | B26: DEALER_TT | C26: TT-NTSO-20201228-0009 | D26: HETV20201224-TV-Dealer-SOA-202101 | E26: 20210101 | F26: 20210131 | G26: NTSO | H26: 2021/01/01 | I26: 2021/01/31 | J26: 公司-電視-促銷補助價差-01~01 | K26: DEALER_TT | L26: Dealer_TT | M26: TW | O26: AMT | P26: 促銷補助價差 | Q26: (空白) | R26: 49SM8100PWA.ATT | S26: 5800 | T26: 2 | U26: 11600
A27: DEALER_TT | B27: DEALER_TT | C27: TT-NTSO-20201228-0009 | D27: HETV20201224-TV-Dealer-SOA-202101 | E27: 20210101 | F27: 20210131 | G27: NTSO | H27: 2021/01/01 | I27: 2021/01/31 | J27: 公司-電視-促銷補助價差-01~01 | K27: DEALER_TT | L27: Dealer_TT | M27: TW | O27: AMT | P27: 促銷補助價差 | R27: 55SM8100PWA.ATT | S27: 4143 | T27: 4 | U27: 16572
A28: DEALER_TT | B28: DEALER_TT | C28: TT-NTSO-20201228-0009 | D28: HETV20201224-TV-Dealer-SOA-202101 | E28: 20210101 | F28: 20210131 | G28: NTSO | H28: 2021/01/01 | I28: 2021/01/31 | J28: 公司-電視-促銷補助價差-01~01 | K28: DEALER_TT | L28: Dealer_TT | M28: TW | O28: AMT | P28: 促銷補助價差 | R28: 55UM7300PWA.ATT | S28: 3314 | T28: 1 | U28: 3314
A29: DEALER_TT | B29: DEALER_TT | C29: TT-NTSO-20201228-0009 | D29: HETV20201224-TV-Dealer-SOA-202101 | E29: 20210101 | F29: 20210131 | G29: NTSO | H29: 2021/01/01 | I29: 2021/01/31 | J29: 公司-電視-促銷補助價差-01~01 | K29: DEALER_TT | L29: Dealer_TT | M29: TW | O29: AMT | P29: 促銷補助價差 | R29: 55UM7500PWA.ATT | S29: 829 | T29: 4 | U29: 3316
A30: DEALER_TT | B30: DEALER_TT | C30: TT-NTSO-20201228-0009 | D30: HETV20201224-TV-Dealer-SOA-202101 | E30: 20210101 | F30: 20210131 | G30: NTSO | H30: 2021/01/01 | I30: 2021/01/31 | J30: 公司-電視-促銷補助價差-01~01 | K30: DEALER_TT | L30: Dealer_TT | M30: TW | O30: AMT | P30: 促銷補助價差 | R30: 55UM7600PWA.ATT | S30: 829 | T30: 1 | U30: 829
A31: DEALER_TT | B31: DEALER_TT | C31: TT-NTSO-20201228-0009 | D31: HETV20201224-TV-Dealer-SOA-202101 | E31: 20210101 | F31: 20210131 | G31: NTSO | H31: 2021/01/01 | I31: 2021/01/31 | J31: 公司-電視-促銷補助價差-01~01 | K31: DEALER_TT | L31: Dealer_TT | M31: TW | O31: AMT | P31: 促銷補助價差 | R31: 65UM7600PWA.ATT | S31: 1657 | T31: 4 | U31: 6628
A32: DEALER_TT | B32: DEALER_TT | C32: TT-NTSO-20201228-0009 | D32: HETV20201224-TV-Dealer-SOA-202101 | E32: 20210101 | F32: 20210131 | G32: NTSO | H32: 2021/01/01 | I32: 2021/01/31 | J32: 公司-電視-促銷補助價差-01~01 | K32: DEALER_TT | L32: Dealer_TT | M32: TW | O32: AMT | P32: 促銷補助價差 | R32: 75UM7600PWA.ATT | S32: 9943 | T32: 1 | U32: 9943
A33: DEALER_TT | B33: DEALER_TT | C33: TT-NTSO-20201228-0009 | D33: HETV20201224-TV-Dealer-SOA-202101 | E33: 20210101 | F33: 20210131 | G33: NTSO | H33: 2021/01/01 | I33: 2021/01/31 | J33: 公司-電視-促銷補助價差-01~01 | K33: DEALER_TT | L33: Dealer_TT | M33: TW | O33: AMT | P33: 促銷補助價差 | R33: 86UM7600PWA.ATT | S33: 24857 | T33: 8 | U33: 198856
A34: DEALER_TT | B34: DEALER_TT | C34: TT-NTSO-20201228-0009 | D34: HETV20201224-TV-Dealer-SOA-202101 | E34: 20210101 | F34: 20210131 | G34: NTSO | H34: 2021/01/01 | I34: 2021/01/31 | J34: 公司-電視-促銷補助價差-01~01 | K34: DEALER_TT | L34: Dealer_TT | M34: TW | O34: AMT | P34: 促銷補助價差 | R34: OLED65C9PWA.ATT | S34: 24857 | T34: 2 | U34: 49714
A35: DEALER_TT | B35: DEALER_TT | C35: TT-NTSO-20201228-0009 | D35: HETV20201224-TV-Dealer-SOA-202101 | E35: 20210101 | F35: 20210131 | G35: NTSO | H35: 2021/01/01 | I35: 2021/01/31 | J35: 公司-電視-促銷補助價差-01~01 | K35: DEALER_TT | L35: Dealer_TT | M35: TW | O35: AMT | P35: 促銷補助價差 | R35: OLED77C9PWA.ATT | S35: 48242 | T35: 1 | U35: 48242
A36: DEALER_TT | B36: DEALER_TT | C36: TT-NTSO-20201228-0010 | D36: HETV20201224-TV-Dealer-SOAplus-202101 | E36: 20210101 | F36: 20210131 | G36: NTSO | H36: 2021/01/01 | I36: 2021/01/31 | J36: 公司-電視-促銷補助價差-01~01 | K36: DEALER_TT | L36: Dealer_TT | M36: TW | O36: AMT | P36: 促銷補助價差 | Q36: (空白) | R36: OLED65CXPWA.ATT | S36: 4143 | T36: 109 | U36: 451587
A37: DEALER_TT | B37: DEALER_TT | C37: TT-NTSO-20201229-0034 | D37: HAPMA2020122401-RF-Dealer-Credit Card-202101-02 | E37: 20210101 | F37: 20210228 | G37: NTSO | H37: 2021/01/01 | I37: 2021/02/28 | J37: 公司-冰箱-分期補助(預估,按實際發生補助)-01~02 | K37: DEALER_TT | L37: Dealer_TT | M37: TW | O37: AMT | P37: 分期補助(預估,按實際發生補助) | Q37: CNT | R37: =Q37 -> CNT | S37: 1000 | T37: 700 | U37: 700000
A38: DEALER_TT | B38: DEALER_TT | C38: TT-NTSO-20201229-0035 | D38: HAPMA2020122401-RF-Dealer-EOL-202101 | E38: 20210101 | F38: 20210131 | G38: NTSO | H38: 2021/01/01 | I38: 2021/01/31 | J38: 公司-冰箱-出清補助-01~01 | K38: DEALER_TT | L38: Dealer_TT | M38: TW | O38: AMT | P38: 出清補助 | Q38: (空白) | R38: GW-BF388SV.APZBTST | S38: 2381 | T38: 1 | U38: 2381
A39: DEALER_TT | B39: DEALER_TT | C39: TT-NTSO-20201229-0036 | D39: HAPMA2020122401-RF-Dealer-SOA-ForInstaviewStore-202101 | E39: 20210101 | F39: 20210131 | G39: NTSO | H39: 2021/01/01 | I39: 2021/01/31 | J39: 公司-冰箱-實銷補助(Instaview陳列店)-01~01 | K39: DEALER_TT | L39: Dealer_TT | M39: TW | O39: AMT | P39: 實銷補助(Instaview陳列店) | Q39: (空白) | R39: GR-QBF87MB.AMTBTST | S39: 2190 | T39: 1 | U39: 2190
A40: DEALER_TT | B40: DEALER_TT | C40: TT-NTSO-20201229-0036 | D40: HAPMA2020122401-RF-Dealer-SOA-ForInstaviewStore-202101 | E40: 20210101 | F40: 20210131 | G40: NTSO | H40: 2021/01/01 | I40: 2021/01/31 | J40: 公司-冰箱-實銷補助(Instaview陳列店)-01~01 | K40: DEALER_TT | L40: Dealer_TT | M40: TW | O40: AMT | P40: 實銷補助(Instaview陳列店) | R40: GR-QBFL87BS.ASBBTST | S40: 2190 | T40: 29 | U40: 63510
A41: DEALER_TT | B41: DEALER_TT | C41: TT-NTSO-20201229-0036 | D41: HAPMA2020122401-RF-Dealer-SOA-ForInstaviewStore-202101 | E41: 20210101 | F41: 20210131 | G41: NTSO | H41: 2021/01/01 | I41: 2021/01/31 | J41: 公司-冰箱-實銷補助(Instaview陳列店)-01~01 | K41: DEALER_TT | L41: Dealer_TT | M41: TW | O41: AMT | P41: 實銷補助(Instaview陳列店) | R41: GR-QL88N.ANSBTST | S41: 2190 | T41: 52 | U41: 113880
A42: DEALER_TT | B42: DEALER_TT | C42: TT-NTSO-20201229-0036 | D42: HAPMA2020122401-RF-Dealer-SOA-ForInstaviewStore-202101 | E42: 20210101 | F42: 20210131 | G42: NTSO | H42: 2021/01/01 | I42: 2021/01/31 | J42: 公司-冰箱-實銷補助(Instaview陳列店)-01~01 | K42: DEALER_TT | L42: Dealer_TT | M42: TW | O42: AMT | P42: 實銷補助(Instaview陳列店) | R42: GR-QPL88BS.ASBBTST | S42: 2857 | T42: 77 | U42: 219989
A43: DEALER_TT | B43: DEALER_TT | C43: TT-NTSO-20201229-0036 | D43: HAPMA2020122401-RF-Dealer-SOA-ForInstaviewStore-202101 | E43: 20210101 | F43: 20210131 | G43: NTSO | H43: 2021/01/01 | I43: 2021/01/31 | J43: 公司-冰箱-實銷補助(Instaview陳列店)-01~01 | K43: DEALER_TT | L43: Dealer_TT | M43: TW | O43: AMT | P43: 實銷補助(Instaview陳列店) | R43: GR-QPL88SV.ASTBTST | S43: 2190 | T43: 93 | U43: 203670
A44: DEALER_TT | B44: DEALER_TT | C44: TT-NTSO-20201229-0036 | D44: HAPMA2020122401-RF-Dealer-SOA-ForInstaviewStore-202101 | E44: 20210101 | F44: 20210131 | G44: NTSO | H44: 2021/01/01 | I44: 2021/01/31 | J44: 公司-冰箱-實銷補助(Instaview陳列店)-01~01 | K44: DEALER_TT | L44: Dealer_TT | M44: TW | O44: AMT | P44: 實銷補助(Instaview陳列店) | R44: GR-QL66MB.AMCBTST | S44: 2190 | T44: 107 | U44: 234330
A45: DEALER_TT | B45: DEALER_TT | C45: TT-NTSO-20201229-0037 | D45: HAPMA2020122401-RF-Dealer-SignatureSOA-DisplayRF-202101 | E45: 20210101 | F45: 20210131 | G45: NTSO | H45: 2021/01/01 | I45: 2021/01/31 | J45: 公司-冰箱-實銷補助(Signature Corner僅陳列冰箱或酒櫃)-01~01 | K45: DEALER_TT | L45: Dealer_TT | M45: TW | O45: AMT | P45: 實銷補助(Signature Corner僅陳列冰箱或酒櫃) | Q45: (空白) | R45: GR-DBFL88ST.AGLBTST | S45: 10671 | T45: 1 | U45: 10671
A46: DEALER_TT | B46: DEALER_TT | C46: TT-NTSO-20201229-0037 | D46: HAPMA2020122401-RF-Dealer-SignatureSOA-DisplayRF-202101 | E46: 20210101 | F46: 20210131 | G46: NTSO | H46: 2021/01/01 | I46: 2021/01/31 | J46: 公司-冰箱-實銷補助(Signature Corner僅陳列冰箱或酒櫃)-01~01 | K46: DEALER_TT | L46: Dealer_TT | M46: TW | O46: AMT | P46: 實銷補助(Signature Corner僅陳列冰箱或酒櫃) | R46: GR-W570ST.AGRBTST | S46: 8529 | T46: 1 | U46: 8529
A47: DEALER_TT | B47: DEALER_TT | C47: TT-NTSO-20201229-0038 | D47: HAPMA2020122401-RF-Dealer-SignatureSOA-DisplayRFWM-202101 | E47: 20210101 | F47: 20210131 | G47: NTSO | H47: 2021/01/01 | I47: 2021/01/31 | J47: 公司-冰箱-實銷補助(Signature Corner冰洗皆陳列)-01~01 | K47: DEALER_TT | L47: Dealer_TT | M47: TW | O47: AMT | P47: 實銷補助(Signature Corner冰洗皆陳列) | Q47: (空白) | R47: GR-DBFL88ST.AGLBTST | S47: 21343 | T47: 1 | U47: 21343
A48: DEALER_TT | B48: DEALER_TT | C48: TT-NTSO-20201229-0038 | D48: HAPMA2020122401-RF-Dealer-SignatureSOA-DisplayRFWM-202101 | E48: 20210101 | F48: 20210131 | G48: NTSO | H48: 2021/01/01 | I48: 2021/01/31 | J48: 公司-冰箱-實銷補助(Signature Corner冰洗皆陳列)-01~01 | K48: DEALER_TT | L48: Dealer_TT | M48: TW | O48: AMT | P48: 實銷補助(Signature Corner冰洗皆陳列) | R48: GR-W570ST.AGRBTST | S48: 17057 | T48: 1 | U48: 17057
A49: DEALER_TT | B49: DEALER_TT | C49: TT-NTSO-20201230-0017 | D49: HAPMWM20211227-Dry-Dealer-EOL-202101 | E49: 20210101 | F49: 20210131 | G49: NTSO | H49: 2021/01/01 | I49: 2021/01/31 | J49: 公司-免曬衣機-出清補助-01~01 | K49: DEALER_TT | L49: Dealer_TT | M49: TW | O49: AMT | P49: 出清補助 | Q49: (空白) | R49: WR-90TW.ABWBTST | S49: 6939 | T49: 52 | U49: 360828
A50: DEALER_TT | B50: DEALER_TT | C50: TT-NTSO-20201230-0018 | D50: HAPMWM20211227-Dry-Dealer-SOA-ForDisplay_1SetStore-202101 | E50: 20210101 | F50: 20210131 | G50: NTSO | H50: 2021/01/01 | I50: 2021/01/31 | J50: 公司-免曬衣機-實銷補助(一組堆疊陳列者)-01~01 | K50: DEALER_TT | L50: Dealer_TT | M50: TW | O50: AMT | P50: 實銷補助(一組堆疊陳列者) | Q50: (空白) | R50: WR-90VW.ABWBTST | S50: 952 | T50: 150 | U50: 142800
A51: DEALER_TT | B51: DEALER_TT | C51: TT-NTSO-20201230-0018 | D51: HAPMWM20211227-Dry-Dealer-SOA-ForDisplay_1SetStore-202101 | E51: 20210101 | F51: 20210131 | G51: NTSO | H51: 2021/01/01 | I51: 2021/01/31 | J51: 公司-免曬衣機-實銷補助(一組堆疊陳列者)-01~01 | K51: DEALER_TT | L51: Dealer_TT | M51: TW | O51: AMT | P51: 實銷補助(一組堆疊陳列者) | R51: WR-16HW.ABWBTST | S51: 952 | T51: 100 | U51: 95200
A52: DEALER_TT | B52: DEALER_TT | C52: TT-NTSO-20201230-0019 | D52: HAPMWM20211227-Dry-Dealer-SOA-ForDisplay_2SetStore-202101 | E52: 20210101 | F52: 20210131 | G52: NTSO | H52: 2021/01/01 | I52: 2021/01/31 | J52: 公司-免曬衣機-實銷補助(滾筒+Dryer&mini+Dryer共兩組陳列)-01~01 | K52: DEALER_TT | L52: Dealer_TT | M52: TW | O52: AMT | P52: 實銷補助(滾筒+Dryer&mini+Dryer共兩組陳列) | Q52: (空白) | R52: WR-90VW.ABWBTST | S52: 1429 | T52: 230 | U52: 328670
A53: DEALER_TT | B53: DEALER_TT | C53: TT-NTSO-20201230-0019 | D53: HAPMWM20211227-Dry-Dealer-SOA-ForDisplay_2SetStore-202101 | E53: 20210101 | F53: 20210131 | G53: NTSO | H53: 2021/01/01 | I53: 2021/01/31 | J53: 公司-免曬衣機-實銷補助(滾筒+Dryer&mini+Dryer共兩組陳列)-01~01 | K53: DEALER_TT | L53: Dealer_TT | M53: TW | O53: AMT | P53: 實銷補助(滾筒+Dryer&mini+Dryer共兩組陳列) | R53: WR-16HW.ABWBTST | S53: 1429 | T53: 80 | U53: 114320
A54: DEALER_TT | B54: DEALER_TT | C54: TT-NTSO-20201230-0020 | D54: HAPMWM20211227-Dry-Dealer-SOA-ForDisplay_Store-202101 | E54: 20210101 | F54: 20210131 | G54: NTSO | H54: 2021/01/01 | I54: 2021/01/31 | J54: 公司-免曬衣機-實銷補助(單機陳列者)-01~01 | K54: DEALER_TT | L54: Dealer_TT | M54: TW | O54: AMT | P54: 實銷補助(單機陳列者) | Q54: (空白) | R54: WR-90VW.ABWBTST | S54: 476 | T54: 50 | U54: 23800
A55: DEALER_TT | B55: DEALER_TT | C55: TT-NTSO-20201230-0020 | D55: HAPMWM20211227-Dry-Dealer-SOA-ForDisplay_Store-202101 | E55: 20210101 | F55: 20210131 | G55: NTSO | H55: 2021/01/01 | I55: 2021/01/31 | J55: 公司-免曬衣機-實銷補助(單機陳列者)-01~01 | K55: DEALER_TT | L55: Dealer_TT | M55: TW | O55: AMT | P55: 實銷補助(單機陳列者) | R55: WR-16HW.ABWBTST | S55: 476 | T55: 100 | U55: 47600
A56: DEALER_TT | B56: DEALER_TT | C56: TT-NTSO-20201230-0040 | D56: HAPMWM20211227-Styler-Dealer-QtyReward-202101 | E56: 20210101 | F56: 20210131 | G56: NTSO | H56: 2021/01/01 | I56: 2021/01/31 | J56: 公司-電子衣櫥-實銷台獎-01~01 | K56: DEALER_TT | L56: Dealer_TT | M56: TW | O56: AMT | P56: 實銷台獎 | Q56: (空白) | R56: E523FR.ALBBTST | S56: 4762 | T56: 29 | U56: 138098
A57: DEALER_TT | B57: DEALER_TT | C57: TT-NTSO-20201230-0040 | D57: HAPMWM20211227-Styler-Dealer-QtyReward-202101 | E57: 20210101 | F57: 20210131 | G57: NTSO | H57: 2021/01/01 | I57: 2021/01/31 | J57: 公司-電子衣櫥-實銷台獎-01~01 | K57: DEALER_TT | L57: Dealer_TT | M57: TW | O57: AMT | P57: 實銷台獎 | R57: E523MR.ALBBTST | S57: 4762 | T57: 35 | U57: 166670
A58: DEALER_TT | B58: DEALER_TT | C58: TT-NTSO-20201230-0041 | D58: HAPMWM20211227-Styler-Dealer-SOA-ForLaunStylerSolutionStore-202101 | E58: 20210101 | F58: 20210131 | G58: NTSO | H58: 2021/01/01 | I58: 2021/01/31 | J58: 公司-電子衣櫥-Bundle實銷補助(需全方位專區陳列)-01~01 | K58: DEALER_TT | L58: Dealer_TT | M58: TW | O58: AMT | P58: Bundle實銷補助(需全方位專區陳列) | Q58: (空白) | R58: E523FR.ALBBTST | S58: 2000 | T58: 20 | U58: 40000
A59: DEALER_TT | B59: DEALER_TT | C59: TT-NTSO-20201230-0041 | D59: HAPMWM20211227-Styler-Dealer-SOA-ForLaunStylerSolutionStore-202101 | E59: 20210101 | F59: 20210131 | G59: NTSO | H59: 2021/01/01 | I59: 2021/01/31 | J59: 公司-電子衣櫥-Bundle實銷補助(需全方位專區陳列)-01~01 | K59: DEALER_TT | L59: Dealer_TT | M59: TW | O59: AMT | P59: Bundle實銷補助(需全方位專區陳列) | R59: E523MR.ALBBTST | S59: 2000 | T59: 20 | U59: 40000
A60: DEALER_TT | B60: DEALER_TT | C60: TT-NTSO-20201230-0061 | D60: HAPMWM20211227-WM-Dealer-Credit Card-202101-02 | E60: 20210101 | F60: 20210228 | G60: NTSO | H60: 2021/01/01 | I60: 2021/02/28 | J60: 公司-洗衣機-分期補助(預估)-01~02 | K60: DEALER_TT | L60: Dealer_TT | M60: TW | O60: AMT | P60: 分期補助(預估) | Q60: DFT | R60: =Q60 -> DFT | S60: 10000 | T60: 160 | U60: 1600000
A61: DEALER_TT | B61: DEALER_TT | C61: TT-NTSO-20201230-0062 | D61: HAPMWM20211227-WM-Dealer-SignatureSOA-DisplayRFWM-202101 | E61: 20210101 | F61: 20210131 | G61: NTSO | H61: 2021/01/01 | I61: 2021/01/31 | J61: 公司-洗衣機-WD-S12SW實銷補助(Signature Corner冰洗皆陳列)-01~01 | K61: DEALER_TT | L61: Dealer_TT | M61: TW | O61: AMT | P61: WD-S12SW實銷補助(Signature Corner冰洗皆陳列) | Q61: (空白) | R61: WD-S12SW.ABWBTST | S61: 11429 | T61: 5 | U61: 57145
A62: DEALER_TT | B62: DEALER_TT | C62: TT-NTSO-20201230-0063 | D62: HAPMWM20211227-WM-Dealer-SignatureSOA-DisplayWM-202101 | E62: 20210101 | F62: 20210131 | G62: NTSO | H62: 2021/01/01 | I62: 2021/01/31 | J62: 公司-洗衣機-WD-S12SW實銷補助(Signature Corner僅陳列洗衣機)-01~01 | K62: DEALER_TT | L62: Dealer_TT | M62: TW | O62: AMT | P62: WD-S12SW實銷補助(Signature Corner僅陳列洗衣機) | Q62: (空白) | R62: WD-S12SW.ABWBTST | S62: 5714 | T62: 6 | U62: 34284
A63: DEALER_TT | B63: DEALER_TT | C63: TT-NTSO-20201230-0064 | D63: HAPMWM20211227-WM-Dealer-TwinwashSOA-Displaystore-202101 | E63: 20210101 | F63: 20210131 | G63: NTSO | H63: 2021/01/01 | I63: 2021/01/31 | J63: 公司-洗衣機-實銷補助(限陳列店)-01~01 | K63: DEALER_TT | L63: Dealer_TT | M63: TW | O63: AMT | P63: 實銷補助(限陳列店) | Q63: (空白) | R63: F2721HTTV.ASSBTST | S63: 5714 | T63: 56 | U63: 319984
A64: DEALER_TT | B64: DEALER_TT | C64: TT-NTSO-20201230-0064 | D64: HAPMWM20211227-WM-Dealer-TwinwashSOA-Displaystore-202101 | E64: 20210101 | F64: 20210131 | G64: NTSO | H64: 2021/01/01 | I64: 2021/01/31 | J64: 公司-洗衣機-實銷補助(限陳列店)-01~01 | K64: DEALER_TT | L64: Dealer_TT | M64: TW | O64: AMT | P64: 實銷補助(限陳列店) | R64: WD-S19VBS.ABLBTST | S64: 5238 | T64: 77 | U64: 403326
A65: DEALER_TT | B65: DEALER_TT | C65: TT-NTSO-20201230-0088 | D65: ASPM2020122401-AC-Dealer-CreditCard-202101-202102 | E65: 20210101 | F65: 20210228 | G65: NTSO | H65: 2021/01/01 | I65: 2021/02/28 | J65: 公司-冷氣-分期補助-01~02 | K65: DEALER_TT | L65: Dealer_TT | M65: TW | O65: AMT | P65: 分期補助 | Q65: DGT | R65: =Q65 -> DGT | S65: 1000 | T65: 400 | U65: 400000
A66: =IF(RIGHT(B66,1)="H",LEFT(B66,11)&"B",B66) -> DEALER_TT | B66: DEALER_TT | C66: TT-NTSO-20201230-0089 | D66: ASPM2020122401-AC-Dealer-SHP EOL-202101 | E66: 20210101 | F66: 20210131 | G66: =MID(C66,4,4) -> NTSO | H66: =IF(OR($G66="NTSI",$G66="TTSI"),$E66,LEFT($E66,4)&"/"&MID($E66,5,2)&"/"&RIGHT($E66,2)) -> 2021/01/01 | I66: =IF(OR($G66="NTSI",$G66="TTSI"),$F66,LEFT($F66,4)&"/"&MID($F66,5,2)&"/"&RIGHT($F66,2)) -> 2021/01/31 | J66: 公司-冷氣-出清補助-01~01 | K66: DEALER_TT | L66: Dealer_TT | M66: TW | O66: AMT | P66: 出清補助 | Q66: (空白) | R66: LSN28SHP.AT2GTTL | S66: 350 | T66: 40 | U66: 14000
A67: DEALER_TT | B67: DEALER_TT | C67: TT-NTSO-20201230-0089 | D67: ASPM2020122401-AC-Dealer-SHP EOL-202101 | E67: 20210101 | F67: 20210131 | G67: NTSO | H67: 2021/01/01 | I67: 2021/01/31 | J67: 公司-冷氣-出清補助-01~01 | K67: DEALER_TT | L67: Dealer_TT | M67: TW | O67: AMT | P67: 出清補助 | R67: LSN36SHP.AT2GTTL | S67: 350 | T67: 15 | U67: 5250
A68: DEALER_TT | B68: DEALER_TT | C68: TT-NTSO-20201230-0089 | D68: ASPM2020122401-AC-Dealer-SHP EOL-202101 | E68: 20210101 | F68: 20210131 | G68: NTSO | H68: 2021/01/01 | I68: 2021/01/31 | J68: 公司-冷氣-出清補助-01~01 | K68: DEALER_TT | L68: Dealer_TT | M68: TW | O68: AMT | P68: 出清補助 | R68: LSN41SHP.AT2GTTL | S68: 350 | T68: 10 | U68: 3500
A69: DEALER_TT | B69: DEALER_TT | C69: TT-NTSO-20201230-0089 | D69: ASPM2020122401-AC-Dealer-SHP EOL-202101 | E69: 20210101 | F69: 20210131 | G69: NTSO | H69: 2021/01/01 | I69: 2021/01/31 | J69: 公司-冷氣-出清補助-01~01 | K69: DEALER_TT | L69: Dealer_TT | M69: TW | O69: AMT | P69: 出清補助 | R69: LSN52SHP.AK2GTTL | S69: 525 | T69: 10 | U69: 5250
A70: DEALER_TT | B70: DEALER_TT | C70: TT-NTSO-20201230-0089 | D70: ASPM2020122401-AC-Dealer-SHP EOL-202101 | E70: 20210101 | F70: 20210131 | G70: NTSO | H70: 2021/01/01 | I70: 2021/01/31 | J70: 公司-冷氣-出清補助-01~01 | K70: DEALER_TT | L70: Dealer_TT | M70: TW | O70: AMT | P70: 出清補助 | R70: LSN63SHP.AK2GTTL | S70: 525 | T70: 5 | U70: 2625
A71: DEALER_TT | B71: DEALER_TT | C71: TT-NTSO-20201230-0089 | D71: ASPM2020122401-AC-Dealer-SHP EOL-202101 | E71: 20210101 | F71: 20210131 | G71: NTSO | H71: 2021/01/01 | I71: 2021/01/31 | J71: 公司-冷氣-出清補助-01~01 | K71: DEALER_TT | L71: Dealer_TT | M71: TW | O71: AMT | P71: 出清補助 | R71: LSN63SHP2.AK2GTTL | S71: 525 | T71: 3 | U71: 1575
A72: DEALER_TT | B72: DEALER_TT | C72: TT-NTSO-20201230-0089 | D72: ASPM2020122401-AC-Dealer-SHP EOL-202101 | E72: 20210101 | F72: 20210131 | G72: NTSO | H72: 2021/01/01 | I72: 2021/01/31 | J72: 公司-冷氣-出清補助-01~01 | K72: DEALER_TT | L72: Dealer_TT | M72: TW | O72: AMT | P72: 出清補助 | R72: LSN71SHP.AK2GTTL | S72: 525 | T72: 5 | U72: 2625
A73: DEALER_TT | B73: DEALER_TT | C73: TT-NTSO-20201230-0089 | D73: ASPM2020122401-AC-Dealer-SHP EOL-202101 | E73: 20210101 | F73: 20210131 | G73: NTSO | H73: 2021/01/01 | I73: 2021/01/31 | J73: 公司-冷氣-出清補助-01~01 | K73: DEALER_TT | L73: Dealer_TT | M73: TW | O73: AMT | P73: 出清補助 | R73: LSN71SHP2.AK2GTTL | S73: 525 | T73: 5 | U73: 2625
A74: DEALER_TT | B74: DEALER_TT | C74: TT-NTSO-20201230-0089 | D74: ASPM2020122401-AC-Dealer-SHP EOL-202101 | E74: 20210101 | F74: 20210131 | G74: NTSO | H74: 2021/01/01 | I74: 2021/01/31 | J74: 公司-冷氣-出清補助-01~01 | K74: DEALER_TT | L74: Dealer_TT | M74: TW | O74: AMT | P74: 出清補助 | R74: LSU28SHP.AT2GTTL | S74: 650 | T74: 40 | U74: 26000
A75: DEALER_TT | B75: DEALER_TT | C75: TT-NTSO-20201230-0089 | D75: ASPM2020122401-AC-Dealer-SHP EOL-202101 | E75: 20210101 | F75: 20210131 | G75: NTSO | H75: 2021/01/01 | I75: 2021/01/31 | J75: 公司-冷氣-出清補助-01~01 | K75: DEALER_TT | L75: Dealer_TT | M75: TW | O75: AMT | P75: 出清補助 | R75: LSU36SHP.AT2GTTL | S75: 650 | T75: 15 | U75: 9750
A76: DEALER_TT | B76: DEALER_TT | C76: TT-NTSO-20201230-0089 | D76: ASPM2020122401-AC-Dealer-SHP EOL-202101 | E76: 20210101 | F76: 20210131 | G76: NTSO | H76: 2021/01/01 | I76: 2021/01/31 | J76: 公司-冷氣-出清補助-01~01 | K76: DEALER_TT | L76: Dealer_TT | M76: TW | O76: AMT | P76: 出清補助 | R76: LSU41SHP.AT2GTTL | S76: 650 | T76: 10 | U76: 6500
A77: DEALER_TT | B77: DEALER_TT | C77: TT-NTSO-20201230-0089 | D77: ASPM2020122401-AC-Dealer-SHP EOL-202101 | E77: 20210101 | F77: 20210131 | G77: NTSO | H77: 2021/01/01 | I77: 2021/01/31 | J77: 公司-冷氣-出清補助-01~01 | K77: DEALER_TT | L77: Dealer_TT | M77: TW | O77: AMT | P77: 出清補助 | R77: LSU52SHP.AK2GTTL | S77: 975 | T77: 10 | U77: 9750
A78: DEALER_TT | B78: DEALER_TT | C78: TT-NTSO-20201230-0089 | D78: ASPM2020122401-AC-Dealer-SHP EOL-202101 | E78: 20210101 | F78: 20210131 | G78: NTSO | H78: 2021/01/01 | I78: 2021/01/31 | J78: 公司-冷氣-出清補助-01~01 | K78: DEALER_TT | L78: Dealer_TT | M78: TW | O78: AMT | P78: 出清補助 | R78: LSU63SHP.AK2GTTL | S78: 975 | T78: 5 | U78: 4875
A79: DEALER_TT | B79: DEALER_TT | C79: TT-NTSO-20201230-0089 | D79: ASPM2020122401-AC-Dealer-SHP EOL-202101 | E79: 20210101 | F79: 20210131 | G79: NTSO | H79: 2021/01/01 | I79: 2021/01/31 | J79: 公司-冷氣-出清補助-01~01 | K79: DEALER_TT | L79: Dealer_TT | M79: TW | O79: AMT | P79: 出清補助 | R79: LSU63SHP2.AT2GTTL | S79: 975 | T79: 3 | U79: 2925
A80: DEALER_TT | B80: DEALER_TT | C80: TT-NTSO-20201230-0089 | D80: ASPM2020122401-AC-Dealer-SHP EOL-202101 | E80: 20210101 | F80: 20210131 | G80: NTSO | H80: 2021/01/01 | I80: 2021/01/31 | J80: 公司-冷氣-出清補助-01~01 | K80: DEALER_TT | L80: Dealer_TT | M80: TW | O80: AMT | P80: 出清補助 | R80: LSU71SHP.AK2GTTL | S80: 975 | T80: 5 | U80: 4875
A81: DEALER_TT | B81: DEALER_TT | C81: TT-NTSO-20201230-0089 | D81: ASPM2020122401-AC-Dealer-SHP EOL-202101 | E81: 20210101 | F81: 20210131 | G81: NTSO | H81: 2021/01/01 | I81: 2021/01/31 | J81: 公司-冷氣-出清補助-01~01 | K81: DEALER_TT | L81: Dealer_TT | M81: TW | O81: AMT | P81: 出清補助 | R81: LSU71SHP2.AT2GTTL | S81: 975 | T81: 5 | U81: 4875
A82: DEALER_TT | B82: DEALER_TT | C82: TT-NTSO-20201230-0090 | D82: ASPM2020122401-AC-Dealer-SOA-202101 | E82: 20210101 | F82: 20210131 | G82: NTSO | H82: 2021/01/01 | I82: 2021/01/31 | J82: 公司-冷氣-實銷補助-01~01 | K82: DEALER_TT | L82: Dealer_TT | M82: TW | O82: AMT | P82: 實銷補助 | Q82: (空白) | R82: LSN0817DHP.AT2GTTL | S82: 381 | T82: 1 | U82: 381
A83: DEALER_TT | B83: DEALER_TT | C83: TT-NTSO-20201230-0090 | D83: ASPM2020122401-AC-Dealer-SOA-202101 | E83: 20210101 | F83: 20210131 | G83: NTSO | H83: 2021/01/01 | I83: 2021/01/31 | J83: 公司-冷氣-實銷補助-01~01 | K83: DEALER_TT | L83: Dealer_TT | M83: TW | O83: AMT | P83: 實銷補助 | R83: LSN0817SCO.AT2GTTL | S83: 381 | T83: 1 | U83: 381
A84: DEALER_TT | B84: DEALER_TT | C84: TT-NTSO-20201230-0090 | D84: ASPM2020122401-AC-Dealer-SOA-202101 | E84: 20210101 | F84: 20210131 | G84: NTSO | H84: 2021/01/01 | I84: 2021/01/31 | J84: 公司-冷氣-實銷補助-01~01 | K84: DEALER_TT | L84: Dealer_TT | M84: TW | O84: AMT | P84: 實銷補助 | R84: LSN1017DHP.AT2GTTL | S84: 381 | T84: 1 | U84: 381
A85: DEALER_TT | B85: DEALER_TT | C85: TT-NTSO-20201230-0090 | D85: ASPM2020122401-AC-Dealer-SOA-202101 | E85: 20210101 | F85: 20210131 | G85: NTSO | H85: 2021/01/01 | I85: 2021/01/31 | J85: 公司-冷氣-實銷補助-01~01 | K85: DEALER_TT | L85: Dealer_TT | M85: TW | O85: AMT | P85: 實銷補助 | R85: LSN1017SCO.AT2GTTL | S85: 381 | T85: 1 | U85: 381
A86: DEALER_TT | B86: DEALER_TT | C86: TT-NTSO-20201230-0090 | D86: ASPM2020122401-AC-Dealer-SOA-202101 | E86: 20210101 | F86: 20210131 | G86: NTSO | H86: 2021/01/01 | I86: 2021/01/31 | J86: 公司-冷氣-實銷補助-01~01 | K86: DEALER_TT | L86: Dealer_TT | M86: TW | O86: AMT | P86: 實銷補助 | R86: LSN1217DCO.AT2GTTL | S86: 381 | T86: 1 | U86: 381
A87: DEALER_TT | B87: DEALER_TT | C87: TT-NTSO-20201230-0090 | D87: ASPM2020122401-AC-Dealer-SOA-202101 | E87: 20210101 | F87: 20210131 | G87: NTSO | H87: 2021/01/01 | I87: 2021/01/31 | J87: 公司-冷氣-實銷補助-01~01 | K87: DEALER_TT | L87: Dealer_TT | M87: TW | O87: AMT | P87: 實銷補助 | R87: LSN1217DHP.AT2GTTL | S87: 381 | T87: 1 | U87: 381
A88: DEALER_TT | B88: DEALER_TT | C88: TT-NTSO-20201230-0090 | D88: ASPM2020122401-AC-Dealer-SOA-202101 | E88: 20210101 | F88: 20210131 | G88: NTSO | H88: 2021/01/01 | I88: 2021/01/31 | J88: 公司-冷氣-實銷補助-01~01 | K88: DEALER_TT | L88: Dealer_TT | M88: TW | O88: AMT | P88: 實銷補助 | R88: LSN1417DCO.AT2GTTL | S88: 381 | T88: 1 | U88: 381
A89: DEALER_TT | B89: DEALER_TT | C89: TT-NTSO-20201230-0090 | D89: ASPM2020122401-AC-Dealer-SOA-202101 | E89: 20210101 | F89: 20210131 | G89: NTSO | H89: 2021/01/01 | I89: 2021/01/31 | J89: 公司-冷氣-實銷補助-01~01 | K89: DEALER_TT | L89: Dealer_TT | M89: TW | O89: AMT | P89: 實銷補助 | R89: LSN1417DHP.AT2GTTL | S89: 381 | T89: 1 | U89: 381
A90: DEALER_TT | B90: DEALER_TT | C90: TT-NTSO-20201230-0090 | D90: ASPM2020122401-AC-Dealer-SOA-202101 | E90: 20210101 | F90: 20210131 | G90: NTSO | H90: 2021/01/01 | I90: 2021/01/31 | J90: 公司-冷氣-實銷補助-01~01 | K90: DEALER_TT | L90: Dealer_TT | M90: TW | O90: AMT | P90: 實銷補助 | R90: LSN1418SCO.AT2GTTL | S90: 381 | T90: 1 | U90: 381
A91: DEALER_TT | B91: DEALER_TT | C91: TT-NTSO-20201230-0090 | D91: ASPM2020122401-AC-Dealer-SOA-202101 | E91: 20210101 | F91: 20210131 | G91: NTSO | H91: 2021/01/01 | I91: 2021/01/31 | J91: 公司-冷氣-實銷補助-01~01 | K91: DEALER_TT | L91: Dealer_TT | M91: TW | O91: AMT | P91: 實銷補助 | R91: LSN1518ACO.AT2GTTL | S91: 381 | T91: 1 | U91: 381
A92: DEALER_TT | B92: DEALER_TT | C92: TT-NTSO-20201230-0090 | D92: ASPM2020122401-AC-Dealer-SOA-202101 | E92: 20210101 | F92: 20210131 | G92: NTSO | H92: 2021/01/01 | I92: 2021/01/31 | J92: 公司-冷氣-實銷補助-01~01 | K92: DEALER_TT | L92: Dealer_TT | M92: TW | O92: AMT | P92: 實銷補助 | R92: LSN1815WHP.EMBBTTL | S92: 381 | T92: 1 | U92: 381
A93: DEALER_TT | B93: DEALER_TT | C93: TT-NTSO-20201230-0090 | D93: ASPM2020122401-AC-Dealer-SOA-202101 | E93: 20210101 | F93: 20210131 | G93: NTSO | H93: 2021/01/01 | I93: 2021/01/31 | J93: 公司-冷氣-實銷補助-01~01 | K93: DEALER_TT | L93: Dealer_TT | M93: TW | O93: AMT | P93: 實銷補助 | R93: LSN2215WHP.EMBBTTL | S93: 381 | T93: 1 | U93: 381
A94: DEALER_TT | B94: DEALER_TT | C94: TT-NTSO-20201230-0090 | D94: ASPM2020122401-AC-Dealer-SOA-202101 | E94: 20210101 | F94: 20210131 | G94: NTSO | H94: 2021/01/01 | I94: 2021/01/31 | J94: 公司-冷氣-實銷補助-01~01 | K94: DEALER_TT | L94: Dealer_TT | M94: TW | O94: AMT | P94: 實銷補助 | R94: LSN22DCO.AT2GTTL | S94: 381 | T94: 22 | U94: 8382
A95: DEALER_TT | B95: DEALER_TT | C95: TT-NTSO-20201230-0090 | D95: ASPM2020122401-AC-Dealer-SOA-202101 | E95: 20210101 | F95: 20210131 | G95: NTSO | H95: 2021/01/01 | I95: 2021/01/31 | J95: 公司-冷氣-實銷補助-01~01 | K95: DEALER_TT | L95: Dealer_TT | M95: TW | O95: AMT | P95: 實銷補助 | R95: LSN22DHP.AT2GTTL | S95: 381 | T95: 243 | U95: 92583
A96: DEALER_TT | B96: DEALER_TT | C96: TT-NTSO-20201230-0090 | D96: ASPM2020122401-AC-Dealer-SOA-202101 | E96: 20210101 | F96: 20210131 | G96: NTSO | H96: 2021/01/01 | I96: 2021/01/31 | J96: 公司-冷氣-實銷補助-01~01 | K96: DEALER_TT | L96: Dealer_TT | M96: TW | O96: AMT | P96: 實銷補助 | R96: LSN28DCO.AT2GTTL | S96: 571 | T96: 20 | U96: 11420
A97: DEALER_TT | B97: DEALER_TT | C97: TT-NTSO-20201230-0090 | D97: ASPM2020122401-AC-Dealer-SOA-202101 | E97: 20210101 | F97: 20210131 | G97: NTSO | H97: 2021/01/01 | I97: 2021/01/31 | J97: 公司-冷氣-實銷補助-01~01 | K97: DEALER_TT | L97: Dealer_TT | M97: TW | O97: AMT | P97: 實銷補助 | R97: LSN28DHP.AT2GTTL | S97: 571 | T97: 29 | U97: 16559
A98: DEALER_TT | B98: DEALER_TT | C98: TT-NTSO-20201230-0090 | D98: ASPM2020122401-AC-Dealer-SOA-202101 | E98: 20210101 | F98: 20210131 | G98: NTSO | H98: 2021/01/01 | I98: 2021/01/31 | J98: 公司-冷氣-實銷補助-01~01 | K98: DEALER_TT | L98: Dealer_TT | M98: TW | O98: AMT | P98: 實銷補助 | R98: LSN28SHP.AT2GTTL | S98: 305 | T98: 20 | U98: 6100
A99: DEALER_TT | B99: DEALER_TT | C99: TT-NTSO-20201230-0090 | D99: ASPM2020122401-AC-Dealer-SOA-202101 | E99: 20210101 | F99: 20210131 | G99: NTSO | H99: 2021/01/01 | I99: 2021/01/31 | J99: 公司-冷氣-實銷補助-01~01 | K99: DEALER_TT | L99: Dealer_TT | M99: TW | O99: AMT | P99: 實銷補助 | R99: LSN36DCO.AT2GTT1 | S99: 762 | T99: 10 | U99: 7620
A100: DEALER_TT | B100: DEALER_TT | C100: TT-NTSO-20201230-0090 | D100: ASPM2020122401-AC-Dealer-SOA-202101 | E100: 20210101 | F100: 20210131 | G100: NTSO | H100: 2021/01/01 | I100: 2021/01/31 | J100: 公司-冷氣-實銷補助-01~01 | K100: DEALER_TT | L100: Dealer_TT | M100: TW | O100: AMT | P100: 實銷補助 | R100: LSN36DHP.AT2GTTL | S100: 762 | T100: 19 | U100: 14478
A101: DEALER_TT | B101: DEALER_TT | C101: TT-NTSO-20201230-0090 | D101: ASPM2020122401-AC-Dealer-SOA-202101 | E101: 20210101 | F101: 20210131 | G101: NTSO | H101: 2021/01/01 | I101: 2021/01/31 | J101: 公司-冷氣-實銷補助-01~01 | K101: DEALER_TT | L101: Dealer_TT | M101: TW | O101: AMT | P101: 實銷補助 | R101: LSN36SHP.AT2GTTL | S101: 305 | T101: 13 | U101: 3965
A102: DEALER_TT | B102: DEALER_TT | C102: TT-NTSO-20201230-0090 | D102: ASPM2020122401-AC-Dealer-SOA-202101 | E102: 20210101 | F102: 20210131 | G102: NTSO | H102: 2021/01/01 | I102: 2021/01/31 | J102: 公司-冷氣-實銷補助-01~01 | K102: DEALER_TT | L102: Dealer_TT | M102: TW | O102: AMT | P102: 實銷補助 | R102: LSN41DCO.AT2GTTL | S102: 762 | T102: 12 | U102: 9144
A103: DEALER_TT | B103: DEALER_TT | C103: TT-NTSO-20201230-0090 | D103: ASPM2020122401-AC-Dealer-SOA-202101 | E103: 20210101 | F103: 20210131 | G103: NTSO | H103: 2021/01/01 | I103: 2021/01/31 | J103: 公司-冷氣-實銷補助-01~01 | K103: DEALER_TT | L103: Dealer_TT | M103: TW | O103: AMT | P103: 實銷補助 | R103: LSN41DHP.AT2GTTL | S103: 762 | T103: 11 | U103: 8382
A104: DEALER_TT | B104: DEALER_TT | C104: TT-NTSO-20201230-0090 | D104: ASPM2020122401-AC-Dealer-SOA-202101 | E104: 20210101 | F104: 20210131 | G104: NTSO | H104: 2021/01/01 | I104: 2021/01/31 | J104: 公司-冷氣-實銷補助-01~01 | K104: DEALER_TT | L104: Dealer_TT | M104: TW | O104: AMT | P104: 實銷補助 | R104: LSN41SHP.AT2GTTL | S104: 305 | T104: 5 | U104: 1525
A105: DEALER_TT | B105: DEALER_TT | C105: TT-NTSO-20201230-0090 | D105: ASPM2020122401-AC-Dealer-SOA-202101 | E105: 20210101 | F105: 20210131 | G105: NTSO | H105: 2021/01/01 | I105: 2021/01/31 | J105: 公司-冷氣-實銷補助-01~01 | K105: DEALER_TT | L105: Dealer_TT | M105: TW | O105: AMT | P105: 實銷補助 | R105: LSN43ACO.AT2GTT1 | S105: 762 | T105: 2 | U105: 1524
A106: DEALER_TT | B106: DEALER_TT | C106: TT-NTSO-20201230-0090 | D106: ASPM2020122401-AC-Dealer-SOA-202101 | E106: 20210101 | F106: 20210131 | G106: NTSO | H106: 2021/01/01 | I106: 2021/01/31 | J106: 公司-冷氣-實銷補助-01~01 | K106: DEALER_TT | L106: Dealer_TT | M106: TW | O106: AMT | P106: 實銷補助 | R106: LSN43AHP.AT2GTTL | S106: 762 | T106: 6 | U106: 4572
A107: DEALER_TT | B107: DEALER_TT | C107: TT-NTSO-20201230-0090 | D107: ASPM2020122401-AC-Dealer-SOA-202101 | E107: 20210101 | F107: 20210131 | G107: NTSO | H107: 2021/01/01 | I107: 2021/01/31 | J107: 公司-冷氣-實銷補助-01~01 | K107: DEALER_TT | L107: Dealer_TT | M107: TW | O107: AMT | P107: 實銷補助 | R107: LSN52DCO.AK2GTTL | S107: 762 | T107: 9 | U107: 6858
A108: DEALER_TT | B108: DEALER_TT | C108: TT-NTSO-20201230-0090 | D108: ASPM2020122401-AC-Dealer-SOA-202101 | E108: 20210101 | F108: 20210131 | G108: NTSO | H108: 2021/01/01 | I108: 2021/01/31 | J108: 公司-冷氣-實銷補助-01~01 | K108: DEALER_TT | L108: Dealer_TT | M108: TW | O108: AMT | P108: 實銷補助 | R108: LSN52DHP.AK2GTTL | S108: 762 | T108: 32 | U108: 24384
A109: DEALER_TT | B109: DEALER_TT | C109: TT-NTSO-20201230-0090 | D109: ASPM2020122401-AC-Dealer-SOA-202101 | E109: 20210101 | F109: 20210131 | G109: NTSO | H109: 2021/01/01 | I109: 2021/01/31 | J109: 公司-冷氣-實銷補助-01~01 | K109: DEALER_TT | L109: Dealer_TT | M109: TW | O109: AMT | P109: 實銷補助 | R109: LSN52SHP.AK2GTTL | S109: 305 | T109: 4 | U109: 1220
A110: DEALER_TT | B110: DEALER_TT | C110: TT-NTSO-20201230-0090 | D110: ASPM2020122401-AC-Dealer-SOA-202101 | E110: 20210101 | F110: 20210131 | G110: NTSO | H110: 2021/01/01 | I110: 2021/01/31 | J110: 公司-冷氣-實銷補助-01~01 | K110: DEALER_TT | L110: Dealer_TT | M110: TW | O110: AMT | P110: 實銷補助 | R110: LSN63DCO.AK2GTTL | S110: 762 | T110: 1 | U110: 762
A111: DEALER_TT | B111: DEALER_TT | C111: TT-NTSO-20201230-0090 | D111: ASPM2020122401-AC-Dealer-SOA-202101 | E111: 20210101 | F111: 20210131 | G111: NTSO | H111: 2021/01/01 | I111: 2021/01/31 | J111: 公司-冷氣-實銷補助-01~01 | K111: DEALER_TT | L111: Dealer_TT | M111: TW | O111: AMT | P111: 實銷補助 | R111: LSN63DCO2.AK2GTTL | S111: 762 | T111: 5 | U111: 3810
A112: DEALER_TT | B112: DEALER_TT | C112: TT-NTSO-20201230-0090 | D112: ASPM2020122401-AC-Dealer-SOA-202101 | E112: 20210101 | F112: 20210131 | G112: NTSO | H112: 2021/01/01 | I112: 2021/01/31 | J112: 公司-冷氣-實銷補助-01~01 | K112: DEALER_TT | L112: Dealer_TT | M112: TW | O112: AMT | P112: 實銷補助 | R112: LSN63DHP.AK2GTTL | S112: 762 | T112: 1 | U112: 762
A113: DEALER_TT | B113: DEALER_TT | C113: TT-NTSO-20201230-0090 | D113: ASPM2020122401-AC-Dealer-SOA-202101 | E113: 20210101 | F113: 20210131 | G113: NTSO | H113: 2021/01/01 | I113: 2021/01/31 | J113: 公司-冷氣-實銷補助-01~01 | K113: DEALER_TT | L113: Dealer_TT | M113: TW | O113: AMT | P113: 實銷補助 | R113: LSN63DHP2.AK2GTTL | S113: 762 | T113: 10 | U113: 7620
A114: DEALER_TT | B114: DEALER_TT | C114: TT-NTSO-20201230-0090 | D114: ASPM2020122401-AC-Dealer-SOA-202101 | E114: 20210101 | F114: 20210131 | G114: NTSO | H114: 2021/01/01 | I114: 2021/01/31 | J114: 公司-冷氣-實銷補助-01~01 | K114: DEALER_TT | L114: Dealer_TT | M114: TW | O114: AMT | P114: 實銷補助 | R114: LSN63SHP.AK2GTTL | S114: 305 | T114: 1 | U114: 305
A115: DEALER_TT | B115: DEALER_TT | C115: TT-NTSO-20201230-0090 | D115: ASPM2020122401-AC-Dealer-SOA-202101 | E115: 20210101 | F115: 20210131 | G115: NTSO | H115: 2021/01/01 | I115: 2021/01/31 | J115: 公司-冷氣-實銷補助-01~01 | K115: DEALER_TT | L115: Dealer_TT | M115: TW | O115: AMT | P115: 實銷補助 | R115: LSN63SHP2.AK2GTTL | S115: 305 | T115: 1 | U115: 305
A116: DEALER_TT | B116: DEALER_TT | C116: TT-NTSO-20201230-0090 | D116: ASPM2020122401-AC-Dealer-SOA-202101 | E116: 20210101 | F116: 20210131 | G116: NTSO | H116: 2021/01/01 | I116: 2021/01/31 | J116: 公司-冷氣-實銷補助-01~01 | K116: DEALER_TT | L116: Dealer_TT | M116: TW | O116: AMT | P116: 實銷補助 | R116: LSN71DCO.AK2GTTL | S116: 762 | T116: 1 | U116: 762
A117: DEALER_TT | B117: DEALER_TT | C117: TT-NTSO-20201230-0090 | D117: ASPM2020122401-AC-Dealer-SOA-202101 | E117: 20210101 | F117: 20210131 | G117: NTSO | H117: 2021/01/01 | I117: 2021/01/31 | J117: 公司-冷氣-實銷補助-01~01 | K117: DEALER_TT | L117: Dealer_TT | M117: TW | O117: AMT | P117: 實銷補助 | R117: LSN71DCO2.AK2GTTL | S117: 762 | T117: 5 | U117: 3810
A118: DEALER_TT | B118: DEALER_TT | C118: TT-NTSO-20201230-0090 | D118: ASPM2020122401-AC-Dealer-SOA-202101 | E118: 20210101 | F118: 20210131 | G118: NTSO | H118: 2021/01/01 | I118: 2021/01/31 | J118: 公司-冷氣-實銷補助-01~01 | K118: DEALER_TT | L118: Dealer_TT | M118: TW | O118: AMT | P118: 實銷補助 | R118: LSN71DHP.AK2GTTL | S118: 762 | T118: 2 | U118: 1524
A119: DEALER_TT | B119: DEALER_TT | C119: TT-NTSO-20201230-0090 | D119: ASPM2020122401-AC-Dealer-SOA-202101 | E119: 20210101 | F119: 20210131 | G119: NTSO | H119: 2021/01/01 | I119: 2021/01/31 | J119: 公司-冷氣-實銷補助-01~01 | K119: DEALER_TT | L119: Dealer_TT | M119: TW | O119: AMT | P119: 實銷補助 | R119: LSN71DHP2.AK2GTTL | S119: 762 | T119: 14 | U119: 10668
A120: DEALER_TT | B120: DEALER_TT | C120: TT-NTSO-20201230-0090 | D120: ASPM2020122401-AC-Dealer-SOA-202101 | E120: 20210101 | F120: 20210131 | G120: NTSO | H120: 2021/01/01 | I120: 2021/01/31 | J120: 公司-冷氣-實銷補助-01~01 | K120: DEALER_TT | L120: Dealer_TT | M120: TW | O120: AMT | P120: 實銷補助 | R120: LSN71SHP.AK2GTTL | S120: 305 | T120: 1 | U120: 305
A121: DEALER_TT | B121: DEALER_TT | C121: TT-NTSO-20201230-0090 | D121: ASPM2020122401-AC-Dealer-SOA-202101 | E121: 20210101 | F121: 20210131 | G121: NTSO | H121: 2021/01/01 | I121: 2021/01/31 | J121: 公司-冷氣-實銷補助-01~01 | K121: DEALER_TT | L121: Dealer_TT | M121: TW | O121: AMT | P121: 實銷補助 | R121: LSN71SHP2.AK2GTTL | S121: 305 | T121: 1 | U121: 305
A122: DEALER_TT | B122: DEALER_TT | C122: TT-NTSO-20201230-0090 | D122: ASPM2020122401-AC-Dealer-SOA-202101 | E122: 20210101 | F122: 20210131 | G122: NTSO | H122: 2021/01/01 | I122: 2021/01/31 | J122: 公司-冷氣-實銷補助-01~01 | K122: DEALER_TT | L122: Dealer_TT | M122: TW | O122: AMT | P122: 實銷補助 | R122: LSN83DCO.AK2GTTL | S122: 762 | T122: 6 | U122: 4572
A123: DEALER_TT | B123: DEALER_TT | C123: TT-NTSO-20201230-0090 | D123: ASPM2020122401-AC-Dealer-SOA-202101 | E123: 20210101 | F123: 20210131 | G123: NTSO | H123: 2021/01/01 | I123: 2021/01/31 | J123: 公司-冷氣-實銷補助-01~01 | K123: DEALER_TT | L123: Dealer_TT | M123: TW | O123: AMT | P123: 實銷補助 | R123: LSN83DHP.AK2GTTL | S123: 762 | T123: 10 | U123: 7620
A124: DEALER_TT | B124: DEALER_TT | C124: TT-NTSO-20201230-0090 | D124: ASPM2020122401-AC-Dealer-SOA-202101 | E124: 20210101 | F124: 20210131 | G124: NTSO | H124: 2021/01/01 | I124: 2021/01/31 | J124: 公司-冷氣-實銷補助-01~01 | K124: DEALER_TT | L124: Dealer_TT | M124: TW | O124: AMT | P124: 實銷補助 | R124: LSN93DCO.AK2GTTL | S124: 762 | T124: 9 | U124: 6858
A125: DEALER_TT | B125: DEALER_TT | C125: TT-NTSO-20201230-0090 | D125: ASPM2020122401-AC-Dealer-SOA-202101 | E125: 20210101 | F125: 20210131 | G125: NTSO | H125: 2021/01/01 | I125: 2021/01/31 | J125: 公司-冷氣-實銷補助-01~01 | K125: DEALER_TT | L125: Dealer_TT | M125: TW | O125: AMT | P125: 實銷補助 | R125: LSN93DHP.AK2GTTL | S125: 762 | T125: 9 | U125: 6858
A126: DEALER_TT | B126: DEALER_TT | C126: TT-NTSO-20201230-0090 | D126: ASPM2020122401-AC-Dealer-SOA-202101 | E126: 20210101 | F126: 20210131 | G126: NTSO | H126: 2021/01/01 | I126: 2021/01/31 | J126: 公司-冷氣-實銷補助-01~01 | K126: DEALER_TT | L126: Dealer_TT | M126: TW | O126: AMT | P126: 實銷補助 | R126: LSU0817DHP.AT2GTTL | S126: 571 | T126: 1 | U126: 571
A127: DEALER_TT | B127: DEALER_TT | C127: TT-NTSO-20201230-0090 | D127: ASPM2020122401-AC-Dealer-SOA-202101 | E127: 20210101 | F127: 20210131 | G127: NTSO | H127: 2021/01/01 | I127: 2021/01/31 | J127: 公司-冷氣-實銷補助-01~01 | K127: DEALER_TT | L127: Dealer_TT | M127: TW | O127: AMT | P127: 實銷補助 | R127: LSU0817SCO.AT2GTTL | S127: 571 | T127: 1 | U127: 571
A128: DEALER_TT | B128: DEALER_TT | C128: TT-NTSO-20201230-0090 | D128: ASPM2020122401-AC-Dealer-SOA-202101 | E128: 20210101 | F128: 20210131 | G128: NTSO | H128: 2021/01/01 | I128: 2021/01/31 | J128: 公司-冷氣-實銷補助-01~01 | K128: DEALER_TT | L128: Dealer_TT | M128: TW | O128: AMT | P128: 實銷補助 | R128: LSU1017DHP.AT2GTTL | S128: 571 | T128: 1 | U128: 571
A129: DEALER_TT | B129: DEALER_TT | C129: TT-NTSO-20201230-0090 | D129: ASPM2020122401-AC-Dealer-SOA-202101 | E129: 20210101 | F129: 20210131 | G129: NTSO | H129: 2021/01/01 | I129: 2021/01/31 | J129: 公司-冷氣-實銷補助-01~01 | K129: DEALER_TT | L129: Dealer_TT | M129: TW | O129: AMT | P129: 實銷補助 | R129: LSU1017SCO.AT2GTTL | S129: 571 | T129: 1 | U129: 571
A130: =IF(RIGHT(B130,1)="H",LEFT(B130,11)&"B",B130) -> DEALER_TT | B130: DEALER_TT | C130: TT-NTSO-20201230-0090 | D130: ASPM2020122401-AC-Dealer-SOA-202101 | E130: 20210101 | F130: 20210131 | G130: =MID(C130,4,4) -> NTSO | H130: =IF(OR($G130="NTSI",$G130="TTSI"),$E130,LEFT($E130,4)&"/"&MID($E130,5,2)&"/"&RIGHT($E130,2)) -> 2021/01/01 | I130: =IF(OR($G130="NTSI",$G130="TTSI"),$F130,LEFT($F130,4)&"/"&MID($F130,5,2)&"/"&RIGHT($F130,2)) -> 2021/01/31 | J130: 公司-冷氣-實銷補助-01~01 | K130: DEALER_TT | L130: Dealer_TT | M130: TW | O130: AMT | P130: 實銷補助 | R130: LSU1217DCO.AT2GTTL | S130: 571 | T130: 1 | U130: 571
A131: DEALER_TT | B131: DEALER_TT | C131: TT-NTSO-20201230-0090 | D131: ASPM2020122401-AC-Dealer-SOA-202101 | E131: 20210101 | F131: 20210131 | G131: NTSO | H131: 2021/01/01 | I131: 2021/01/31 | J131: 公司-冷氣-實銷補助-01~01 | K131: DEALER_TT | L131: Dealer_TT | M131: TW | O131: AMT | P131: 實銷補助 | R131: LSU1217DHP.AT2GTTL | S131: 571 | T131: 1 | U131: 571
A132: DEALER_TT | B132: DEALER_TT | C132: TT-NTSO-20201230-0090 | D132: ASPM2020122401-AC-Dealer-SOA-202101 | E132: 20210101 | F132: 20210131 | G132: NTSO | H132: 2021/01/01 | I132: 2021/01/31 | J132: 公司-冷氣-實銷補助-01~01 | K132: DEALER_TT | L132: Dealer_TT | M132: TW | O132: AMT | P132: 實銷補助 | R132: LSU1417DCO.AT2GTTL | S132: 571 | T132: 1 | U132: 571
A133: DEALER_TT | B133: DEALER_TT | C133: TT-NTSO-20201230-0090 | D133: ASPM2020122401-AC-Dealer-SOA-202101 | E133: 20210101 | F133: 20210131 | G133: NTSO | H133: 2021/01/01 | I133: 2021/01/31 | J133: 公司-冷氣-實銷補助-01~01 | K133: DEALER_TT | L133: Dealer_TT | M133: TW | O133: AMT | P133: 實銷補助 | R133: LSU1417DHP.AT2GTTL | S133: 571 | T133: 1 | U133: 571
A134: DEALER_TT | B134: DEALER_TT | C134: TT-NTSO-20201230-0090 | D134: ASPM2020122401-AC-Dealer-SOA-202101 | E134: 20210101 | F134: 20210131 | G134: NTSO | H134: 2021/01/01 | I134: 2021/01/31 | J134: 公司-冷氣-實銷補助-01~01 | K134: DEALER_TT | L134: Dealer_TT | M134: TW | O134: AMT | P134: 實銷補助 | R134: LSU1418SCO.AT2GTTL | S134: 571 | T134: 1 | U134: 571
A135: DEALER_TT | B135: DEALER_TT | C135: TT-NTSO-20201230-0090 | D135: ASPM2020122401-AC-Dealer-SOA-202101 | E135: 20210101 | F135: 20210131 | G135: NTSO | H135: 2021/01/01 | I135: 2021/01/31 | J135: 公司-冷氣-實銷補助-01~01 | K135: DEALER_TT | L135: Dealer_TT | M135: TW | O135: AMT | P135: 實銷補助 | R135: LSU1518ACO.AT2GTTL | S135: 571 | T135: 1 | U135: 571
A136: DEALER_TT | B136: DEALER_TT | C136: TT-NTSO-20201230-0090 | D136: ASPM2020122401-AC-Dealer-SOA-202101 | E136: 20210101 | F136: 20210131 | G136: NTSO | H136: 2021/01/01 | I136: 2021/01/31 | J136: 公司-冷氣-實銷補助-01~01 | K136: DEALER_TT | L136: Dealer_TT | M136: TW | O136: AMT | P136: 實銷補助 | R136: LSU1815WHP.EMBBTTL | S136: 571 | T136: 1 | U136: 571
A137: DEALER_TT | B137: DEALER_TT | C137: TT-NTSO-20201230-0090 | D137: ASPM2020122401-AC-Dealer-SOA-202101 | E137: 20210101 | F137: 20210131 | G137: NTSO | H137: 2021/01/01 | I137: 2021/01/31 | J137: 公司-冷氣-實銷補助-01~01 | K137: DEALER_TT | L137: Dealer_TT | M137: TW | O137: AMT | P137: 實銷補助 | R137: LSU2215WHP.EMBBTTL | S137: 571 | T137: 1 | U137: 571
A138: DEALER_TT | B138: DEALER_TT | C138: TT-NTSO-20201230-0090 | D138: ASPM2020122401-AC-Dealer-SOA-202101 | E138: 20210101 | F138: 20210131 | G138: NTSO | H138: 2021/01/01 | I138: 2021/01/31 | J138: 公司-冷氣-實銷補助-01~01 | K138: DEALER_TT | L138: Dealer_TT | M138: TW | O138: AMT | P138: 實銷補助 | R138: LSU22DCO.AT2GTTL | S138: 571 | T138: 22 | U138: 12562
A139: DEALER_TT | B139: DEALER_TT | C139: TT-NTSO-20201230-0090 | D139: ASPM2020122401-AC-Dealer-SOA-202101 | E139: 20210101 | F139: 20210131 | G139: NTSO | H139: 2021/01/01 | I139: 2021/01/31 | J139: 公司-冷氣-實銷補助-01~01 | K139: DEALER_TT | L139: Dealer_TT | M139: TW | O139: AMT | P139: 實銷補助 | R139: LSU22DHP.AT2GTTL | S139: 571 | T139: 243 | U139: 138753
A140: DEALER_TT | B140: DEALER_TT | C140: TT-NTSO-20201230-0090 | D140: ASPM2020122401-AC-Dealer-SOA-202101 | E140: 20210101 | F140: 20210131 | G140: NTSO | H140: 2021/01/01 | I140: 2021/01/31 | J140: 公司-冷氣-實銷補助-01~01 | K140: DEALER_TT | L140: Dealer_TT | M140: TW | O140: AMT | P140: 實銷補助 | R140: LSU28DCO.AT2GTTL | S140: 857 | T140: 20 | U140: 17140
A141: DEALER_TT | B141: DEALER_TT | C141: TT-NTSO-20201230-0090 | D141: ASPM2020122401-AC-Dealer-SOA-202101 | E141: 20210101 | F141: 20210131 | G141: NTSO | H141: 2021/01/01 | I141: 2021/01/31 | J141: 公司-冷氣-實銷補助-01~01 | K141: DEALER_TT | L141: Dealer_TT | M141: TW | O141: AMT | P141: 實銷補助 | R141: LSU28DHP.AT2GTTL | S141: 857 | T141: 29 | U141: 24853
A142: DEALER_TT | B142: DEALER_TT | C142: TT-NTSO-20201230-0090 | D142: ASPM2020122401-AC-Dealer-SOA-202101 | E142: 20210101 | F142: 20210131 | G142: NTSO | H142: 2021/01/01 | I142: 2021/01/31 | J142: 公司-冷氣-實銷補助-01~01 | K142: DEALER_TT | L142: Dealer_TT | M142: TW | O142: AMT | P142: 實銷補助 | R142: LSU28SHP.AT2GTTL | S142: 457 | T142: 20 | U142: 9140
A143: DEALER_TT | B143: DEALER_TT | C143: TT-NTSO-20201230-0090 | D143: ASPM2020122401-AC-Dealer-SOA-202101 | E143: 20210101 | F143: 20210131 | G143: NTSO | H143: 2021/01/01 | I143: 2021/01/31 | J143: 公司-冷氣-實銷補助-01~01 | K143: DEALER_TT | L143: Dealer_TT | M143: TW | O143: AMT | P143: 實銷補助 | R143: LSU36DCO.AT2GTT1 | S143: 1143 | T143: 10 | U143: 11430
A144: DEALER_TT | B144: DEALER_TT | C144: TT-NTSO-20201230-0090 | D144: ASPM2020122401-AC-Dealer-SOA-202101 | E144: 20210101 | F144: 20210131 | G144: NTSO | H144: 2021/01/01 | I144: 2021/01/31 | J144: 公司-冷氣-實銷補助-01~01 | K144: DEALER_TT | L144: Dealer_TT | M144: TW | O144: AMT | P144: 實銷補助 | R144: LSU36DHP.AT2GTTL | S144: 1143 | T144: 19 | U144: 21717
A145: DEALER_TT | B145: DEALER_TT | C145: TT-NTSO-20201230-0090 | D145: ASPM2020122401-AC-Dealer-SOA-202101 | E145: 20210101 | F145: 20210131 | G145: NTSO | H145: 2021/01/01 | I145: 2021/01/31 | J145: 公司-冷氣-實銷補助-01~01 | K145: DEALER_TT | L145: Dealer_TT | M145: TW | O145: AMT | P145: 實銷補助 | R145: LSU36SHP.AT2GTTL | S145: 457 | T145: 13 | U145: 5941
A146: DEALER_TT | B146: DEALER_TT | C146: TT-NTSO-20201230-0090 | D146: ASPM2020122401-AC-Dealer-SOA-202101 | E146: 20210101 | F146: 20210131 | G146: NTSO | H146: 2021/01/01 | I146: 2021/01/31 | J146: 公司-冷氣-實銷補助-01~01 | K146: DEALER_TT | L146: Dealer_TT | M146: TW | O146: AMT | P146: 實銷補助 | R146: LSU41DCO.AT2GTTL | S146: 1143 | T146: 12 | U146: 13716
A147: DEALER_TT | B147: DEALER_TT | C147: TT-NTSO-20201230-0090 | D147: ASPM2020122401-AC-Dealer-SOA-202101 | E147: 20210101 | F147: 20210131 | G147: NTSO | H147: 2021/01/01 | I147: 2021/01/31 | J147: 公司-冷氣-實銷補助-01~01 | K147: DEALER_TT | L147: Dealer_TT | M147: TW | O147: AMT | P147: 實銷補助 | R147: LSU41DHP.AT2GTTL | S147: 1143 | T147: 11 | U147: 12573
A148: DEALER_TT | B148: DEALER_TT | C148: TT-NTSO-20201230-0090 | D148: ASPM2020122401-AC-Dealer-SOA-202101 | E148: 20210101 | F148: 20210131 | G148: NTSO | H148: 2021/01/01 | I148: 2021/01/31 | J148: 公司-冷氣-實銷補助-01~01 | K148: DEALER_TT | L148: Dealer_TT | M148: TW | O148: AMT | P148: 實銷補助 | R148: LSU41SHP.AT2GTTL | S148: 457 | T148: 5 | U148: 2285
A149: DEALER_TT | B149: DEALER_TT | C149: TT-NTSO-20201230-0090 | D149: ASPM2020122401-AC-Dealer-SOA-202101 | E149: 20210101 | F149: 20210131 | G149: NTSO | H149: 2021/01/01 | I149: 2021/01/31 | J149: 公司-冷氣-實銷補助-01~01 | K149: DEALER_TT | L149: Dealer_TT | M149: TW | O149: AMT | P149: 實銷補助 | R149: LSU43ACO.AT2GTT1 | S149: 1143 | T149: 2 | U149: 2286
A150: DEALER_TT | B150: DEALER_TT | C150: TT-NTSO-20201230-0090 | D150: ASPM2020122401-AC-Dealer-SOA-202101 | E150: 20210101 | F150: 20210131 | G150: NTSO | H150: 2021/01/01 | I150: 2021/01/31 | J150: 公司-冷氣-實銷補助-01~01 | K150: DEALER_TT | L150: Dealer_TT | M150: TW | O150: AMT | P150: 實銷補助 | R150: LSU43AHP.AT2GTTL | S150: 1143 | T150: 6 | U150: 6858
A151: DEALER_TT | B151: DEALER_TT | C151: TT-NTSO-20201230-0090 | D151: ASPM2020122401-AC-Dealer-SOA-202101 | E151: 20210101 | F151: 20210131 | G151: NTSO | H151: 2021/01/01 | I151: 2021/01/31 | J151: 公司-冷氣-實銷補助-01~01 | K151: DEALER_TT | L151: Dealer_TT | M151: TW | O151: AMT | P151: 實銷補助 | R151: LSU52DCO.AK2GTTL | S151: 1143 | T151: 9 | U151: 10287
A152: DEALER_TT | B152: DEALER_TT | C152: TT-NTSO-20201230-0090 | D152: ASPM2020122401-AC-Dealer-SOA-202101 | E152: 20210101 | F152: 20210131 | G152: NTSO | H152: 2021/01/01 | I152: 2021/01/31 | J152: 公司-冷氣-實銷補助-01~01 | K152: DEALER_TT | L152: Dealer_TT | M152: TW | O152: AMT | P152: 實銷補助 | R152: LSU52DHP.AK2GTTL | S152: 1143 | T152: 32 | U152: 36576
A153: DEALER_TT | B153: DEALER_TT | C153: TT-NTSO-20201230-0090 | D153: ASPM2020122401-AC-Dealer-SOA-202101 | E153: 20210101 | F153: 20210131 | G153: NTSO | H153: 2021/01/01 | I153: 2021/01/31 | J153: 公司-冷氣-實銷補助-01~01 | K153: DEALER_TT | L153: Dealer_TT | M153: TW | O153: AMT | P153: 實銷補助 | R153: LSU52SHP.AK2GTTL | S153: 457 | T153: 4 | U153: 1828
A154: DEALER_TT | B154: DEALER_TT | C154: TT-NTSO-20201230-0090 | D154: ASPM2020122401-AC-Dealer-SOA-202101 | E154: 20210101 | F154: 20210131 | G154: NTSO | H154: 2021/01/01 | I154: 2021/01/31 | J154: 公司-冷氣-實銷補助-01~01 | K154: DEALER_TT | L154: Dealer_TT | M154: TW | O154: AMT | P154: 實銷補助 | R154: LSU63DCO.AK2GTTL | S154: 1143 | T154: 1 | U154: 1143
A155: DEALER_TT | B155: DEALER_TT | C155: TT-NTSO-20201230-0090 | D155: ASPM2020122401-AC-Dealer-SOA-202101 | E155: 20210101 | F155: 20210131 | G155: NTSO | H155: 2021/01/01 | I155: 2021/01/31 | J155: 公司-冷氣-實銷補助-01~01 | K155: DEALER_TT | L155: Dealer_TT | M155: TW | O155: AMT | P155: 實銷補助 | R155: LSU63DCO2.AT2GTTL | S155: 1143 | T155: 5 | U155: 5715
A156: DEALER_TT | B156: DEALER_TT | C156: TT-NTSO-20201230-0090 | D156: ASPM2020122401-AC-Dealer-SOA-202101 | E156: 20210101 | F156: 20210131 | G156: NTSO | H156: 2021/01/01 | I156: 2021/01/31 | J156: 公司-冷氣-實銷補助-01~01 | K156: DEALER_TT | L156: Dealer_TT | M156: TW | O156: AMT | P156: 實銷補助 | R156: LSU63DHP.AK2GTTL | S156: 1143 | T156: 1 | U156: 1143
A157: DEALER_TT | B157: DEALER_TT | C157: TT-NTSO-20201230-0090 | D157: ASPM2020122401-AC-Dealer-SOA-202101 | E157: 20210101 | F157: 20210131 | G157: NTSO | H157: 2021/01/01 | I157: 2021/01/31 | J157: 公司-冷氣-實銷補助-01~01 | K157: DEALER_TT | L157: Dealer_TT | M157: TW | O157: AMT | P157: 實銷補助 | R157: LSU63DHP2.AT2GTTL | S157: 1143 | T157: 10 | U157: 11430
A158: DEALER_TT | B158: DEALER_TT | C158: TT-NTSO-20201230-0090 | D158: ASPM2020122401-AC-Dealer-SOA-202101 | E158: 20210101 | F158: 20210131 | G158: NTSO | H158: 2021/01/01 | I158: 2021/01/31 | J158: 公司-冷氣-實銷補助-01~01 | K158: DEALER_TT | L158: Dealer_TT | M158: TW | O158: AMT | P158: 實銷補助 | R158: LSU63SHP.AK2GTTL | S158: 457 | T158: 1 | U158: 457
A159: DEALER_TT | B159: DEALER_TT | C159: TT-NTSO-20201230-0090 | D159: ASPM2020122401-AC-Dealer-SOA-202101 | E159: 20210101 | F159: 20210131 | G159: NTSO | H159: 2021/01/01 | I159: 2021/01/31 | J159: 公司-冷氣-實銷補助-01~01 | K159: DEALER_TT | L159: Dealer_TT | M159: TW | O159: AMT | P159: 實銷補助 | R159: LSU63SHP2.AT2GTTL | S159: 457 | T159: 1 | U159: 457
A160: DEALER_TT | B160: DEALER_TT | C160: TT-NTSO-20201230-0090 | D160: ASPM2020122401-AC-Dealer-SOA-202101 | E160: 20210101 | F160: 20210131 | G160: NTSO | H160: 2021/01/01 | I160: 2021/01/31 | J160: 公司-冷氣-實銷補助-01~01 | K160: DEALER_TT | L160: Dealer_TT | M160: TW | O160: AMT | P160: 實銷補助 | R160: LSU71DCO.AK2GTTL | S160: 1143 | T160: 1 | U160: 1143
A161: DEALER_TT | B161: DEALER_TT | C161: TT-NTSO-20201230-0090 | D161: ASPM2020122401-AC-Dealer-SOA-202101 | E161: 20210101 | F161: 20210131 | G161: NTSO | H161: 2021/01/01 | I161: 2021/01/31 | J161: 公司-冷氣-實銷補助-01~01 | K161: DEALER_TT | L161: Dealer_TT | M161: TW | O161: AMT | P161: 實銷補助 | R161: LSU71DCO2.AT2GTTL | S161: 1143 | T161: 5 | U161: 5715
A162: DEALER_TT | B162: DEALER_TT | C162: TT-NTSO-20201230-0090 | D162: ASPM2020122401-AC-Dealer-SOA-202101 | E162: 20210101 | F162: 20210131 | G162: NTSO | H162: 2021/01/01 | I162: 2021/01/31 | J162: 公司-冷氣-實銷補助-01~01 | K162: DEALER_TT | L162: Dealer_TT | M162: TW | O162: AMT | P162: 實銷補助 | R162: LSU71DHP.AK2GTTL | S162: 1143 | T162: 2 | U162: 2286
A163: DEALER_TT | B163: DEALER_TT | C163: TT-NTSO-20201230-0090 | D163: ASPM2020122401-AC-Dealer-SOA-202101 | E163: 20210101 | F163: 20210131 | G163: NTSO | H163: 2021/01/01 | I163: 2021/01/31 | J163: 公司-冷氣-實銷補助-01~01 | K163: DEALER_TT | L163: Dealer_TT | M163: TW | O163: AMT | P163: 實銷補助 | R163: LSU71DHP2.AT2GTTL | S163: 1143 | T163: 14 | U163: 16002
A164: DEALER_TT | B164: DEALER_TT | C164: TT-NTSO-20201230-0090 | D164: ASPM2020122401-AC-Dealer-SOA-202101 | E164: 20210101 | F164: 20210131 | G164: NTSO | H164: 2021/01/01 | I164: 2021/01/31 | J164: 公司-冷氣-實銷補助-01~01 | K164: DEALER_TT | L164: Dealer_TT | M164: TW | O164: AMT | P164: 實銷補助 | R164: LSU71SHP.AK2GTTL | S164: 457 | T164: 1 | U164: 457
A165: DEALER_TT | B165: DEALER_TT | C165: TT-NTSO-20201230-0090 | D165: ASPM2020122401-AC-Dealer-SOA-202101 | E165: 20210101 | F165: 20210131 | G165: NTSO | H165: 2021/01/01 | I165: 2021/01/31 | J165: 公司-冷氣-實銷補助-01~01 | K165: DEALER_TT | L165: Dealer_TT | M165: TW | O165: AMT | P165: 實銷補助 | R165: LSU71SHP2.AT2GTTL | S165: 457 | T165: 1 | U165: 457
A166: DEALER_TT | B166: DEALER_TT | C166: TT-NTSO-20201230-0090 | D166: ASPM2020122401-AC-Dealer-SOA-202101 | E166: 20210101 | F166: 20210131 | G166: NTSO | H166: 2021/01/01 | I166: 2021/01/31 | J166: 公司-冷氣-實銷補助-01~01 | K166: DEALER_TT | L166: Dealer_TT | M166: TW | O166: AMT | P166: 實銷補助 | R166: LSU83DCO.AK2GTTL | S166: 1143 | T166: 6 | U166: 6858
A167: DEALER_TT | B167: DEALER_TT | C167: TT-NTSO-20201230-0090 | D167: ASPM2020122401-AC-Dealer-SOA-202101 | E167: 20210101 | F167: 20210131 | G167: NTSO | H167: 2021/01/01 | I167: 2021/01/31 | J167: 公司-冷氣-實銷補助-01~01 | K167: DEALER_TT | L167: Dealer_TT | M167: TW | O167: AMT | P167: 實銷補助 | R167: LSU83DHP.AK2GTTL | S167: 1143 | T167: 10 | U167: 11430
A168: DEALER_TT | B168: DEALER_TT | C168: TT-NTSO-20201230-0090 | D168: ASPM2020122401-AC-Dealer-SOA-202101 | E168: 20210101 | F168: 20210131 | G168: NTSO | H168: 2021/01/01 | I168: 2021/01/31 | J168: 公司-冷氣-實銷補助-01~01 | K168: DEALER_TT | L168: Dealer_TT | M168: TW | O168: AMT | P168: 實銷補助 | R168: LSU93DCO.AK2GTTL | S168: 1143 | T168: 9 | U168: 10287
A169: DEALER_TT | B169: DEALER_TT | C169: TT-NTSO-20201230-0090 | D169: ASPM2020122401-AC-Dealer-SOA-202101 | E169: 20210101 | F169: 20210131 | G169: NTSO | H169: 2021/01/01 | I169: 2021/01/31 | J169: 公司-冷氣-實銷補助-01~01 | K169: DEALER_TT | L169: Dealer_TT | M169: TW | O169: AMT | P169: 實銷補助 | R169: LSU93DHP.AK2GTTL | S169: 1143 | T169: 9 | U169: 10287
A170: DEALER_TT | B170: DEALER_TT | C170: TT-NTSO-20201230-0090 | D170: ASPM2020122401-AC-Dealer-SOA-202101 | E170: 20210101 | F170: 20210131 | G170: NTSO | H170: 2021/01/01 | I170: 2021/01/31 | J170: 公司-冷氣-實銷補助-01~01 | K170: DEALER_TT | L170: Dealer_TT | M170: TW | O170: AMT | P170: 實銷補助 | R170: LSN28IHP.AT2GTTL | S170: 190 | T170: 4 | U170: 760
A171: DEALER_TT | B171: DEALER_TT | C171: TT-NTSO-20201230-0090 | D171: ASPM2020122401-AC-Dealer-SOA-202101 | E171: 20210101 | F171: 20210131 | G171: NTSO | H171: 2021/01/01 | I171: 2021/01/31 | J171: 公司-冷氣-實銷補助-01~01 | K171: DEALER_TT | L171: Dealer_TT | M171: TW | O171: AMT | P171: 實銷補助 | R171: LSN36IHP.AT2GTTL | S171: 190 | T171: 3 | U171: 570
A172: DEALER_TT | B172: DEALER_TT | C172: TT-NTSO-20201230-0090 | D172: ASPM2020122401-AC-Dealer-SOA-202101 | E172: 20210101 | F172: 20210131 | G172: NTSO | H172: 2021/01/01 | I172: 2021/01/31 | J172: 公司-冷氣-實銷補助-01~01 | K172: DEALER_TT | L172: Dealer_TT | M172: TW | O172: AMT | P172: 實銷補助 | R172: LSN52IHP.AK2GTTL | S172: 305 | T172: 1 | U172: 305
A173: DEALER_TT | B173: DEALER_TT | C173: TT-NTSO-20201230-0090 | D173: ASPM2020122401-AC-Dealer-SOA-202101 | E173: 20210101 | F173: 20210131 | G173: NTSO | H173: 2021/01/01 | I173: 2021/01/31 | J173: 公司-冷氣-實銷補助-01~01 | K173: DEALER_TT | L173: Dealer_TT | M173: TW | O173: AMT | P173: 實銷補助 | R173: LSN63IHP.AK2GTTL | S173: 305 | T173: 1 | U173: 305
A174: DEALER_TT | B174: DEALER_TT | C174: TT-NTSO-20201230-0090 | D174: ASPM2020122401-AC-Dealer-SOA-202101 | E174: 20210101 | F174: 20210131 | G174: NTSO | H174: 2021/01/01 | I174: 2021/01/31 | J174: 公司-冷氣-實銷補助-01~01 | K174: DEALER_TT | L174: Dealer_TT | M174: TW | O174: AMT | P174: 實銷補助 | R174: LSU28IHP.AT2GTTL | S174: 286 | T174: 4 | U174: 1144
A175: DEALER_TT | B175: DEALER_TT | C175: TT-NTSO-20201230-0090 | D175: ASPM2020122401-AC-Dealer-SOA-202101 | E175: 20210101 | F175: 20210131 | G175: NTSO | H175: 2021/01/01 | I175: 2021/01/31 | J175: 公司-冷氣-實銷補助-01~01 | K175: DEALER_TT | L175: Dealer_TT | M175: TW | O175: AMT | P175: 實銷補助 | R175: LSU36IHP.AT2GTTL | S175: 286 | T175: 3 | U175: 858
A176: DEALER_TT | B176: DEALER_TT | C176: TT-NTSO-20201230-0090 | D176: ASPM2020122401-AC-Dealer-SOA-202101 | E176: 20210101 | F176: 20210131 | G176: NTSO | H176: 2021/01/01 | I176: 2021/01/31 | J176: 公司-冷氣-實銷補助-01~01 | K176: DEALER_TT | L176: Dealer_TT | M176: TW | O176: AMT | P176: 實銷補助 | R176: LSU52IHP.AT2GTTL | S176: 457 | T176: 1 | U176: 457
A177: DEALER_TT | B177: DEALER_TT | C177: TT-NTSO-20201230-0090 | D177: ASPM2020122401-AC-Dealer-SOA-202101 | E177: 20210101 | F177: 20210131 | G177: NTSO | H177: 2021/01/01 | I177: 2021/01/31 | J177: 公司-冷氣-實銷補助-01~01 | K177: DEALER_TT | L177: Dealer_TT | M177: TW | O177: AMT | P177: 實銷補助 | R177: LSU63IHP.AT2GTTL | S177: 457 | T177: 1 | U177: 457
A178: DEALER_TT | B178: DEALER_TT | C178: TT-NTSO-20201230-0090 | D178: ASPM2020122401-AC-Dealer-SOA-202101 | E178: 20210101 | F178: 20210131 | G178: NTSO | H178: 2021/01/01 | I178: 2021/01/31 | J178: 公司-冷氣-實銷補助-01~01 | K178: DEALER_TT | L178: Dealer_TT | M178: TW | O178: AMT | P178: 實銷補助 | R178: LSU41IHP.AT2GTTL | S178: 457 | T178: 2 | U178: 914
A179: DEALER_TT | B179: DEALER_TT | C179: TT-NTSO-20201230-0090 | D179: ASPM2020122401-AC-Dealer-SOA-202101 | E179: 20210101 | F179: 20210131 | G179: NTSO | H179: 2021/01/01 | I179: 2021/01/31 | J179: 公司-冷氣-實銷補助-01~01 | K179: DEALER_TT | L179: Dealer_TT | M179: TW | O179: AMT | P179: 實銷補助 | R179: LSN41IHP.AT2GTTL | S179: 305 | T179: 2 | U179: 610
A180: DEALER_TT | B180: DEALER_TT | C180: TT-NTSO-20201230-0090 | D180: ASPM2020122401-AC-Dealer-SOA-202101 | E180: 20210101 | F180: 20210131 | G180: NTSO | H180: 2021/01/01 | I180: 2021/01/31 | J180: 公司-冷氣-實銷補助-01~01 | K180: DEALER_TT | L180: Dealer_TT | M180: TW | O180: AMT | P180: 實銷補助 | R180: LSU71IHP.AT2GTTL | S180: 457 | T180: 1 | U180: 457
A181: DEALER_TT | B181: DEALER_TT | C181: TT-NTSO-20201230-0090 | D181: ASPM2020122401-AC-Dealer-SOA-202101 | E181: 20210101 | F181: 20210131 | G181: NTSO | H181: 2021/01/01 | I181: 2021/01/31 | J181: 公司-冷氣-實銷補助-01~01 | K181: DEALER_TT | L181: Dealer_TT | M181: TW | O181: AMT | P181: 實銷補助 | R181: LSN71IHP.AK2GTTL | S181: 305 | T181: 1 | U181: 305
A182: DEALER_TT | B182: DEALER_TT | C182: TT-NTSO-20201230-0110 | D182: IL20201223-VCC-Dealer-QtyReward-202101 | E182: 20210101 | F182: 20210131 | G182: NTSO | H182: 2021/01/01 | I182: 2021/01/31 | J182: 公司-吸塵器-台獎-01~01 | K182: DEALER_TT | L182: Dealer_TT | M182: TW | O182: AMT | P182: 台獎 | Q182: (空白) | R182: A9PSMOP2X.AIGBLTT | S182: 2857 | T182: 80 | U182: 228560
A183: DEALER_TT | B183: DEALER_TT | C183: TT-NTSO-20201230-0110 | D183: IL20201223-VCC-Dealer-QtyReward-202101 | E183: 20210101 | F183: 20210131 | G183: NTSO | H183: 2021/01/01 | I183: 2021/01/31 | J183: 公司-吸塵器-台獎-01~01 | K183: DEALER_TT | L183: Dealer_TT | M183: TW | O183: AMT | P183: 台獎 | R183: VR6685TWARV.ARDBLTT | S183: 1000 | T183: 30 | U183: 30000
A184: DEALER_TT | B184: DEALER_TT | C184: TT-NTSO-20201230-0110 | D184: IL20201223-VCC-Dealer-QtyReward-202101 | E184: 20210101 | F184: 20210131 | G184: NTSO | H184: 2021/01/01 | I184: 2021/01/31 | J184: 公司-吸塵器-台獎-01~01 | K184: DEALER_TT | L184: Dealer_TT | M184: TW | O184: AMT | P184: 台獎 | R184: VR66930VWNC.ABOBLTT | S184: 2000 | T184: 50 | U184: 100000
A185: DEALER_TT | B185: DEALER_TT | C185: TT-NTSO-20201230-0110 | D185: IL20201223-VCC-Dealer-QtyReward-202101 | E185: 20210101 | F185: 20210131 | G185: NTSO | H185: 2021/01/01 | I185: 2021/01/31 | J185: 公司-吸塵器-台獎-01~01 | K185: DEALER_TT | L185: Dealer_TT | M185: TW | O185: AMT | P185: 台獎 | R185: VR6690TWVV.AVWBLTT | S185: 1000 | T185: 50 | U185: 50000
A186: DEALER_TT | B186: DEALER_TT | C186: TT-NTSO-20201230-0111 | D186: IL20201223-VCC-DealerCreditCard-202101-202102 | E186: 20210101 | F186: 20210228 | G186: NTSO | H186: 2021/01/01 | I186: 2021/02/28 | J186: 公司-吸塵器-分期補助-01~02 | K186: DEALER_TT | L186: Dealer_TT | M186: TW | O186: AMT | P186: 分期補助 | Q186: DVT | R186: =Q186 -> DVT | S186: 1000 | T186: 140 | U186: 140000
A187: DEALER_TT | B187: DEALER_TT | C187: TT-NTSO-20201231-0029 | D187: IL20201225-DH-Dealer-QtyReward-202101 | E187: 20210101 | F187: 20210131 | G187: NTSO | H187: 2021/01/01 | I187: 2021/01/31 | J187: 公司-除濕機-台獎-01~01 | K187: DEALER_TT | L187: Dealer_TT | M187: TW | O187: AMT | P187: 台獎 | Q187: (空白) | R187: MD171QSK1.ATT | S187: 1157 | T187: 138 | U187: 159666
A188: DEALER_TT | B188: DEALER_TT | C188: TT-NTSO-20201231-0029 | D188: IL20201225-DH-Dealer-QtyReward-202101 | E188: 20210101 | F188: 20210131 | G188: NTSO | H188: 2021/01/01 | I188: 2021/01/31 | J188: 公司-除濕機-台獎-01~01 | K188: DEALER_TT | L188: Dealer_TT | M188: TW | O188: AMT | P188: 台獎 | R188: MD181QWK1.ATT | S188: 1157 | T188: 205 | U188: 237185
A189: DEALER_TT | B189: DEALER_TT | C189: TT-NTSO-20201231-0030 | D189: IL20201225-DH-DealerCreditCard-202101-202102 | E189: 20210101 | F189: 20210228 | G189: NTSO | H189: 2021/01/01 | I189: 2021/02/28 | J189: 公司-除濕機-分期補助-01~02 | K189: DEALER_TT | L189: Dealer_TT | M189: TW | O189: AMT | P189: 分期補助 | Q189: (空白) | R189: DLT | S189: 1000 | T189: 66 | U189: 66000
A190: DEALER_TT | B190: DEALER_TT | C190: TT-NTSO-20201231-0042 | D190: IL20201225-HC-Dealer-QtyReward-202101 | E190: 20210101 | F190: 20210131 | G190: NTSO | H190: 2021/01/01 | I190: 2021/01/31 | J190: 公司-清淨機-台獎-01~01 | K190: DEALER_TT | L190: Dealer_TT | M190: TW | O190: AMT | P190: 台獎 | Q190: (空白) | R190: AS101DSS0.ATT | S190: 500 | T190: 50 | U190: 25000
A191: DEALER_TT | B191: DEALER_TT | C191: TT-NTSO-20201231-0042 | D191: IL20201225-HC-Dealer-QtyReward-202101 | E191: 20210101 | F191: 20210131 | G191: NTSO | H191: 2021/01/01 | I191: 2021/01/31 | J191: 公司-清淨機-台獎-01~01 | K191: DEALER_TT | L191: Dealer_TT | M191: TW | O191: AMT | P191: 台獎 | R191: AS651DSS0.ATT | S191: 500 | T191: 105 | U191: 52500
A192: DEALER_TT | B192: DEALER_TT | C192: TT-NTSO-20201231-0042 | D192: IL20201225-HC-Dealer-QtyReward-202101 | E192: 20210101 | F192: 20210131 | G192: NTSO | H192: 2021/01/01 | I192: 2021/01/31 | J192: 公司-清淨機-台獎-01~01 | K192: DEALER_TT | L192: Dealer_TT | M192: TW | O192: AMT | P192: 台獎 | R192: AS101DWH0.ATT | S192: 500 | T192: 8 | U192: 4000
A193: DEALER_TT | B193: DEALER_TT | C193: TT-NTSO-20201231-0042 | D193: IL20201225-HC-Dealer-QtyReward-202101 | E193: 20210101 | F193: 20210131 | G193: NTSO | H193: 2021/01/01 | I193: 2021/01/31 | J193: 公司-清淨機-台獎-01~01 | K193: DEALER_TT | L193: Dealer_TT | M193: TW | O193: AMT | P193: 台獎 | R193: AS651DWH0.ATT | S193: 500 | T193: 19 | U193: 9500
A194: =IF(RIGHT(B194,1)="H",LEFT(B194,11)&"B",B194) -> DEALER_TT | B194: DEALER_TT | C194: TT-NTSO-20201231-0042 | D194: IL20201225-HC-Dealer-QtyReward-202101 | E194: 20210101 | F194: 20210131 | G194: =MID(C194,4,4) -> NTSO | H194: =IF(OR($G194="NTSI",$G194="TTSI"),$E194,LEFT($E194,4)&"/"&MID($E194,5,2)&"/"&RIGHT($E194,2)) -> 2021/01/01 | I194: =IF(OR($G194="NTSI",$G194="TTSI"),$F194,LEFT($F194,4)&"/"&MID($F194,5,2)&"/"&RIGHT($F194,2)) -> 2021/01/31 | J194: 公司-清淨機-台獎-01~01 | K194: DEALER_TT | L194: Dealer_TT | M194: TW | O194: AMT | P194: 台獎 | R194: AS551DWG0.ATT | S194: 500 | T194: 55 | U194: 27500
A195: DEALER_TT | B195: DEALER_TT | C195: TT-NTSO-20201231-0043 | D195: IL20201225-HC-Dealer-SOA-202101 | E195: 20210101 | F195: 20210131 | G195: NTSO | H195: 2021/01/01 | I195: 2021/01/31 | J195: 公司-清淨機-實銷補助-01~01 | K195: DEALER_TT | L195: Dealer_TT | M195: TW | O195: AMT | P195: 實銷補助 | Q195: (空白) | R195: AS401WWJ1.ATT | S195: 1000 | T195: 32 | U195: 32000
A196: DEALER_TT | B196: DEALER_TT | C196: TT-NTSO-20201231-0043 | D196: IL20201225-HC-Dealer-SOA-202101 | E196: 20210101 | F196: 20210131 | G196: NTSO | H196: 2021/01/01 | I196: 2021/01/31 | J196: 公司-清淨機-實銷補助-01~01 | K196: DEALER_TT | L196: Dealer_TT | M196: TW | O196: AMT | P196: 實銷補助 | R196: AS551DWS0.ATT | S196: 3000 | T196: 11 | U196: 33000
A197: DEALER_TT | B197: DEALER_TT | C197: TT-NTSO-20201231-0043 | D197: IL20201225-HC-Dealer-SOA-202101 | E197: 20210101 | F197: 20210131 | G197: NTSO | H197: 2021/01/01 | I197: 2021/01/31 | J197: 公司-清淨機-實銷補助-01~01 | K197: DEALER_TT | L197: Dealer_TT | M197: TW | O197: AMT | P197: 實銷補助 | R197: AS601DPT0.ATT | S197: 2700 | T197: 16 | U197: 43200
A198: DEALER_TT | B198: DEALER_TT | C198: TT-NTSO-20201231-0043 | D198: IL20201225-HC-Dealer-SOA-202101 | E198: 20210101 | F198: 20210131 | G198: NTSO | H198: 2021/01/01 | I198: 2021/01/31 | J198: 公司-清淨機-實銷補助-01~01 | K198: DEALER_TT | L198: Dealer_TT | M198: TW | O198: AMT | P198: 實銷補助 | R198: AS951DPT0.ATT | S198: 5000 | T198: 9 | U198: 45000
A199: DEALER_TT | B199: DEALER_TT | C199: TT-NTSO-20201231-0043 | D199: IL20201225-HC-Dealer-SOA-202101 | E199: 20210101 | F199: 20210131 | G199: NTSO | H199: 2021/01/01 | I199: 2021/01/31 | J199: 公司-清淨機-實銷補助-01~01 | K199: DEALER_TT | L199: Dealer_TT | M199: TW | O199: AMT | P199: 實銷補助 | R199: AS101DSS0.ATT | S199: 2514 | T199: 50 | U199: 125700
A200: DEALER_TT | B200: DEALER_TT | C200: TT-NTSO-20201231-0043 | D200: IL20201225-HC-Dealer-SOA-202101 | E200: 20210101 | F200: 20210131 | G200: NTSO | H200: 2021/01/01 | I200: 2021/01/31 | J200: 公司-清淨機-實銷補助-01~01 | K200: DEALER_TT | L200: Dealer_TT | M200: TW | O200: AMT | P200: 實銷補助 | R200: AS651DSS0.ATT | S200: 1500 | T200: 105 | U200: 157500
... 4300 more rows
